Cogmind - Beta 16.1 @@@ ROGUE MODE // 2026.03.21 @ 18:13:53 Player: the Result: Destroyed 0b10! Performance ------------- Evolutions (9) 4500 Regions Visited (27) 5400 Robots Destroyed (405) 2025 Value Destroyed (22137) 22137 Prototype IDs (77) 1540 Alien Tech Used (8) 1600 Bonus (36896) 36896 TOTAL SCORE: 74098 Bonus ------- Triggered High Security 1000 Triggered Max Security 3000 High Alert Combat Kills 5311 Follower Combat Kills 2291 Network Hubs Disabled 200 Met Data Miner 300 Met Warlord at Base 500 MAIN.C Attacked Warlord 500 Warlord Defense Kills 494 Built Enhanced Grunts 300 A7 Reached Mainframe 300 Met R17 at Cetus 500 Used Core Reset Matrix 3000 Met R17 at Research 2000 Met Sigix 2000 Activated Exoskeleton 3000 Escaped with Exo-Sigix 10000 Win 3000 Friendly Fire -800 Cogmind --------- Core Integrity 359/1600 Matter 149/425 Energy 399/1019 System Corruption 1% Temperature Cool (5) Movement Walking (77) Location Tau Ceti IV Orbit Parts ------- > --- POWER (4) -------- Particle-Antimatter Reactor > --- PROPULSION (7) --- Biometal Exoskeleton > --- UTILITY (10) ----- Armored Scrap Engine Experimental Coolant Injector Advanced Sensor Array Advanced Signal Interpreter Microwarp Drive > --- WEAPON (5) ------- Hpw. Ballistic Linear Construct/C > --- INVENTORY (5) ---- Transdimensional Reconstructor Transdimensional Reconstructor Integrity Redistributor Subatomic Replicator Peak State ------------ > --- POWER ------------ Particle-Antimatter Reactor > --- PROPULSION ------- Biometal Exoskeleton > --- UTILITY ---------- Armored Scrap Engine Huge Storage Unit Long-range Sensor Array Advanced Signal Interpreter Advanced Force Field Microwarp Drive > --- WEAPON ----------- Hpw. Ballistic Linear Construct/C > --- INVENTORY -------- Experimental Cooling System Coolant Network Experimental Coolant Injector Long-range Terrain Scanner Advanced Particle Charger Quantum Capacitor Advanced Weapon Cycler Experimental Cloaking Device Advanced Force Field Advanced Component Analysis Suite Transdimensional Reconstructor Transdimensional Reconstructor Integrity Redistributor Subatomic Replicator Vortex Rail Vortex Rail Multirail Hypercooled Linear Accelerator Hypercooled Linear Accelerator [Rating: 206] Favorites ----------- Power Constructs Engine Light Deuterium Engine Power Core Micro Fission Core Reactor Constructs Propulsion Constructs Treads Advanced Treads Leg Constructs Utility Armored Scrap Engine Device Armored Scrap Engine Storage Huge Storage Unit Processor Advanced Signal Interpreter Hackware Hacking Suite Protection Improved Medium Armor Plating Artifact Microwarp Drive Weapon Constructs Energy Gun Beam Rifle Energy Cannon Beam Cannon Ballistic Gun Heavy Assault Rifle Ballistic Cannon Constructs Launcher EMP Blaster Special Weapon Mining Laser Piercing Weapon Makeshift Spear Build | -11 -10 -10 -8 -8 -8 -6 -6 -6 -5 -5 -5 -5 -5 -4 -4 -4 -4 -4 -4 -4 -4 -3 -3 -3 -2 -1 -1 ------- Run | Yrd Mat Sub Mat Sto Rec Fac Low Dat Pro Fac Upp Upp War Pro Fac Was Fac Ext Cet Arc Hub Res Qua Sec Res Acc Com Slots Evolved 17 | . . . 4 . . 4 . . . 2 . . . . 2 . . . . . . 2 . . 2 1 . Power 3 | . . . 1 . . . . . . 1 . . . . . . . . . . . 1 . . . . . Propulsion 5 | . . . 1 . . 1 . . . 1 . . . . 1 . . . . . . . . . 1 . . Utility 7 | . . . 1 . . 2 . . . . . . . . 1 . . . . . . 1 . . 1 1 . Weapon 2 | . . . 1 . . 1 . . . . . . . . . . . . . . . . . . . . . Parts Attached 177 | 8 9 4 28 25 1 10 3 9 . 6 2 . 4 3 9 . 11 3 . 2 2 11 15 9 . . 3 Power 17 | 1 3 . 4 5 . . . . . . . . 2 . . . . . . . . 1 1 . . . . Engine 12 | 1 3 . 4 4 . . . . . . . . . . . . . . . . . . . . . . . Core 2 | . . . . . . . . . . . . . 1 . . . . . . . . . 1 . . . . Reactor 3 | . . . . 1 . . . . . . . . 1 . . . . . . . . 1 . . . . . Propulsion 18 | 2 1 1 8 5 . . . . . . 1 . . . . . . . . . . . . . . . . Treads 16 | 2 1 1 8 4 . . . . . . . . . . . . . . . . . . . . . . . Leg 2 | . . . . 1 . . . . . . 1 . . . . . . . . . . . . . . . . Wheel . | . . . . . . . . . . . . . . . . . . . . . . . . . . . . Hover . | . . . . . . . . . . . . . . . . . . . . . . . . . . . . Flight . | . . . . . . . . . . . . . . . . . . . . . . . . . . . . Utility 107 | 3 1 1 3 2 1 10 3 9 . 6 1 . 2 3 9 . 11 3 . 2 2 10 14 8 . . 3 Device 69 | 2 . . 1 . 1 3 1 5 . 2 1 . 2 2 7 . 7 3 . 2 2 9 12 5 . . 2 Storage 14 | 1 1 . 2 1 . 2 2 1 . 2 . . . . . . . . . . . . 2 . . . . Processor 9 | . . . . . . 1 . 1 . 1 . . . . . . 3 . . . . . . 2 . . 1 Hackware 10 | . . . . 1 . 4 . . . 1 . . . . 2 . 1 . . . . 1 . . . . . Protection 4 | . . 1 . . . . . 2 . . . . . 1 . . . . . . . . . . . . . Artifact 1 | . . . . . . . . . . . . . . . . . . . . . . . . 1 . . . Weapon 35 | 2 4 2 13 13 . . . . . . . . . . . . . . . . . . . 1 . . . Energy Gun 10 | . . . 8 2 . . . . . . . . . . . . . . . . . . . . . . . Energy Cannon 6 | . 2 . 3 1 . . . . . . . . . . . . . . . . . . . . . . . Ballistic Gun 12 | 2 1 . 2 6 . . . . . . . . . . . . . . . . . . . 1 . . . Ballistic Cannon 1 | . . . . 1 . . . . . . . . . . . . . . . . . . . . . . . Launcher 4 | . 1 . . 3 . . . . . . . . . . . . . . . . . . . . . . . Special Weapon 1 | . . 1 . . . . . . . . . . . . . . . . . . . . . . . . . Impact Weapon . | . . . . . . . . . . . . . . . . . . . . . . . . . . . . Slashing Weapon . | . . . . . . . . . . . . . . . . . . . . . . . . . . . . Piercing Weapon 1 | . . 1 . . . . . . . . . . . . . . . . . . . . . . . . . Special Melee Weapon . | . . . . . . . . . . . . . . . . . . . . . . . . . . . . Unidentified Prototypes 33 | . . . 2 6 1 . . 1 . . . . 2 1 . . 1 . . . . 6 8 5 . . . Corrupted Parts 1 | . . . . . . . . . . . . . . 1 . . . . . . . . . . . . . System Corruption 7 | . . . . . . . . . . . . . . 7 . . . . . . . . . . . . . Parts Lost 15 | . 2 1 1 2 . . . . . 1 . . . 1 . . 1 . . . . . . 2 1 2 1 Power 6 | . 1 1 . 2 . . . . . 1 . . . . . . . . . . . . . . . 1 . Propulsion 3 | . 1 . 1 . . . . . . . . . . . . . . . . . . . . 1 . . . Utility 5 | . . . . . . . . . . . . . . 1 . . 1 . . . . . . . 1 1 1 Weapon 1 | . . . . . . . . . . . . . . . . . . . . . . . . 1 . . . Highest Loss Streak 2 | . 1 1 1 2 . . . . . 1 . . . 1 . . 1 . . . . . . 2 1 2 1 To Critical Strikes 3 | . . . . . . . . . . 1 . . . . . . . . . . . . . 2 . . . Average Backups 18 | 2 9 10 16 19 15 16 19 9 20 18 13 18 18 15 19 21 23 23 24 24 23 22 21 19 17 14 10 Power . | . . . 1 . . 1 2 . 2 . . . . 1 1 1 1 2 2 2 2 . . . . . . Propulsion 1 | . 1 2 3 3 3 1 1 1 4 2 . 2 3 1 1 1 . . . . . 1 . . . . . Utility 10 | . 3 3 2 2 2 11 16 6 14 15 11 12 12 10 13 15 16 16 17 17 16 16 13 10 9 8 6 Weapon 5 | . 3 4 7 13 9 2 . . . . 2 3 2 3 3 4 5 5 5 5 5 5 6 5 3 2 . Tool/Special . | . . . . . . . . . . . . . . . . . . . . . . . . . . . . Unused Backups 194 | 3 4 1 10 7 15 16 . 10 . 12 . 1 10 3 2 . 5 1 1 . 1 9 67 5 2 1 8 Power 18 | . . . 2 2 3 1 . 1 . 2 . . 1 . . . . . 1 . . 2 3 . . . . Propulsion 45 | 3 . . 3 2 5 5 . 2 . 4 . . 2 3 1 . 1 1 . . . 2 11 . . . . Utility 61 | . 1 1 2 1 . 4 . 5 . 6 . . 4 . . . 1 . . . 1 2 29 2 . . 2 Weapon 63 | . 3 . 3 2 7 6 . 2 . . . 1 3 . 1 . 3 . . . . 3 22 2 2 1 2 Tool/Special 7 | . . . . . . . . . . . . . . . . . . . . . . . 2 1 . . 4 Average Slot Usage (%) 55 | . 99 97 91 87 68 45 46 45 46 40 41 41 41 39 36 36 39 42 42 42 42 42 41 41 36 33 36 Engine 3 | . 13 11 10 13 5 . . . . 1 2 . . . . . . . . . . . . . . . . Core 1 | . . . . . 3 6 6 6 6 2 2 5 2 . . . . . . . . . . . . . . Reactor 2 | . . . . 1 4 . . . . 1 . . 2 5 5 5 5 5 5 5 5 4 4 4 4 3 3 Treads 7 | . 27 28 26 26 16 . . . . 3 . 5 5 1 . . . . . . . . . . . . . Leg 2 | . . . . . 3 1 5 6 6 1 . . . . 4 5 5 5 5 5 5 3 . . 1 3 3 Hover 1 | . . . . . . 4 . . . . 3 . . 3 . . . . . . . . 4 4 2 . . Device 14 | . 14 13 17 9 9 14 12 17 13 12 17 17 17 15 15 15 13 15 15 15 15 18 18 17 14 11 14 Storage 6 | . 14 14 9 9 9 6 6 6 6 5 5 5 5 5 5 5 5 5 5 5 5 4 4 4 4 3 2 Processor 2 | . . . . . . . . 1 6 3 . . . . . . 3 5 5 5 5 4 4 5 4 3 3 Hackware 1 | . . . . 8 4 3 6 . . . . . . . . . 1 . . . . . . . . . . Energy Gun 1 | . . . 20 . . . . . . . . . . . . . . . . . . . . . . . . Energy Cannon 3 | . 18 22 5 2 6 2 . . . 4 . . 5 5 2 5 4 4 . . . . . 1 . . . Ballistic Gun 1 | . 8 . 1 4 . . . . . . . . . . . . . . . . . . . . . . . Ballistic Cannon 3 | . . . . 7 5 3 6 6 6 . 4 4 . . 2 . . . 5 5 5 4 4 2 3 3 3 Peak Build Rating 206 | 7 8 11 30 41 54 78 79 89 86 107 101 93 119 142 159 155 164 152 150 151 157 174 191 199 206 203 198 Average Rating 101 | 5 7 8 23 34 42 67 75 79 83 96 94 92 104 132 148 151 155 151 148 150 154 165 179 185 188 192 192 On Entrance 104 | . 7 8 7 30 41 54 78 75 83 83 94 92 93 119 142 155 151 151 147 150 151 157 167 189 181 166 155 Avg Prop Armor Cover (%) 8 | . . . 8 . 10 . . . . . . . . . . . . . . . . . . . . . . Naked Turns . | . . . . . . . . . . . . . . . . . . . . . . . . . . . . Heaviest Build 171 | 14 22 22 63 118 118 68 70 73 69 83 88 88 115 122 154 147 167 167 158 169 169 171 171 171 165 160 152 Greatest Support 236 | 40 40 40 60 66 66 76 87 87 87 87 101 101 101 101 198 198 198 198 198 198 236 236 236 236 196 196 196 Greatest Overweight (x) 2 | . . . 1 1 2 1 . . . 1 1 . 1 1 1 . . . . . . . . . . . . Average Overweight (x) . | . . . . . . . . . . . . . . 1 . . . . . . . . . . . . . Largest Inventory Capacity 25 | 8 10 10 20 25 25 20 20 20 20 20 20 20 20 20 25 25 25 25 25 25 25 25 25 25 25 25 25 Average Capacity 20 | 6 9 10 17 21 22 20 20 20 20 19 15 20 20 20 21 25 25 25 25 25 25 25 25 25 25 25 22 Most Carried 25 | 5 10 10 20 25 25 20 20 20 20 20 17 20 20 20 22 23 25 25 25 25 25 25 25 25 24 21 19 Average Carried 19 | 2 9 9 16 20 16 17 19 9 20 18 13 19 18 16 19 21 24 24 24 25 24 24 23 24 20 16 12 Final Capacity 25 | 8 10 10 20 25 20 20 20 20 20 15 20 20 20 20 25 25 25 25 25 25 25 25 25 25 25 25 5 Final Carried 25 | 4 10 10 20 25 17 20 20 20 20 15 17 20 20 16 21 23 24 25 25 25 25 25 25 22 21 19 4 Scrap Engine Consumption 254 | . . . . . 34 25 3 7 . 41 11 2 13 5 5 5 25 7 8 . 1 16 24 16 2 2 2 Constructs Created 5 | . . . . . 3 . . . . . . . . . . . . . . . . . . 2 . . . Constructs Modified 107 | . . . . . 9 13 1 3 . 14 11 2 3 3 3 1 10 3 2 1 2 10 6 3 4 1 2 Class Distribution -------------------- 33% | Construct 24% | Generator-Construct 13% | Commander-Construct 7% | Commander-Gunner 6% | Gunner 5% | Mutant 3% | Scavenger-Mutant 3% | Scavenger-Gunner Dominant Class ---------------- Mutant | -10/Materials Mutant | -10/Subcaves Scavenger-Gunner | -8/Materials Commander-Gunner | -8/Storage Commander-Gunner | -8/Recycling Commander-Construct | -6/Factory Construct | -6/Lower Caves Construct | -6/Data Miner Construct | -5/Proximity Caves Construct | -5/Factory Construct | -5/Upper Caves Construct | -5/Upper Caves Construct | -5/Warlord Infiltrator-Construct | -4/Proximity Caves Construct | -4/Factory Construct | -4/Waste Construct | -4/Factory Construct | -4/Extension Commander-Construct | -4/Cetus Commander-Construct | -4/Archives Commander-Construct | -4/Hub_04(d) Generator-Construct | -3/Research Generator-Construct | -3/Quarantine Generator-Construct | -3/Section 7 Generator-Construct | -2/Research Generator-Construct | -1/Access Generator-Construct | -1/Command Resources | -11 -10 -10 -8 -8 -8 -6 -6 -6 -5 -5 -5 -5 -5 -4 -4 -4 -4 -4 -4 -4 -4 -3 -3 -3 -2 -1 -1 ----------- Run | Yrd Mat Sub Mat Sto Rec Fac Low Dat Pro Fac Upp Upp War Pro Fac Was Fac Ext Cet Arc Hub Res Qua Sec Res Acc Com Matter Collected 12493 | 318 310 9 660 1419 258 341 164 318 . 690 115 16 149 57 183 . 505 337 151 137 1 969 1296 1542 1213 829 506 Remotely . | . . . . . . . . . . . . . . . . . . . . . . . . . . . . Salvage Created 23949 | 137 325 13 874 1940 849 743 226 410 . 1678 . 67 229 154 402 . 2915 3415 622 356 179 1783 1359 2853 1709 360 351 Parts 1089 | 13 31 2 39 81 28 20 2 19 . 50 . 3 1 10 19 . 127 160 29 20 11 64 115 139 66 18 22 Haulers Intercepted 23 | . 2 . 3 6 1 2 . . . 2 . . . . . . 4 . . . . 2 . 1 . . . Recyclers Shooed 15 | 1 . . 1 8 . 1 . . . 1 . . . . 1 . 1 1 . . . . . . . . . Parts Field Recycled . | . . . . . . . . . . . . . . . . . . . . . . . . . . . . Retrieved Matter . | . . . . . . . . . . . . . . . . . . . . . . . . . . . . Parts Self-Destructed 21 | . . 8 . . . . . . . . 1 3 . 9 . . . . . . . . . . . . . Prevented 1 | . . . . . . . . . . . 1 . . . . . . . . . . . . . . . . Parts Restored . | . . . . . . . . . . . . . . . . . . . . . . . . . . . . Kills | -11 -10 -10 -8 -8 -8 -6 -6 -6 -5 -5 -5 -5 -5 -4 -4 -4 -4 -4 -4 -4 -4 -3 -3 -3 -2 -1 -1 ------- Run | Yrd Mat Sub Mat Sto Rec Fac Low Dat Pro Fac Upp Upp War Pro Fac Was Fac Ext Cet Arc Hub Res Qua Sec Res Acc Com Combat Hostiles Destroyed 278 | . 7 5 12 21 8 3 1 4 . 18 . 4 3 2 12 . 30 41 7 2 1 17 18 34 21 3 4 Melee 12 | . . . . . . . . . . 1 . 3 1 . 2 . 2 . . . . . . . 1 1 1 Guns 13 | . 5 . 5 3 . . . . . . . . . . . . . . . . . . . . . . . Cannons 215 | . . 1 5 13 8 2 1 4 . 12 . 1 . 2 3 . 25 41 7 2 1 17 18 27 20 2 3 AOE 16 | . 2 4 2 5 . . . . . . . . . . 2 . . . . . . . . 1 . . . Classes Destroyed 30 | 2 3 1 6 1 1 2 1 . . 2 . . 3 . . . 2 . . . . 2 . 3 . 1 . Worker 19 | . . . 2 8 . . . . . 2 . . . . . . 4 1 . . . . . 1 . 1 . Builder 11 | . . . . 1 2 1 . . . 1 . . . . . . 1 4 . . . . . 1 . . . Tunneler 6 | 3 1 . . . . . . . . . . . . . 1 . . . . . . 1 . . . . . Hauler 23 | . 2 . 3 6 1 2 . . . 2 . . . . . . 4 . . . . 2 . 1 . . . Recycler 34 | 1 . . 2 14 3 2 . . . 2 . . . . . . 3 2 . . . 1 . 2 . 1 1 Mechanic 1 | . . . . . . . . . . . . . . . . . 1 . . . . . . . . . . Operator 12 | . . . 1 . . 1 . . . . . . . . . . 1 1 . 5 . 1 . 2 . . . Watcher 16 | . . . 2 2 . . . . . . . . . . 1 . 1 2 2 . . . 2 3 1 . . Swarmer 43 | . 3 4 . 4 . 1 . . . . . 4 . . 9 . 4 3 . . . 2 . 4 3 1 1 Cutter 3 | . . . . . . . . . . . . . . . . . . . . . . . . 3 . . . Saboteur 2 | . . . . . . . . . . . . . . . . . 1 . . . . . . . 1 . . Grunt 69 | . 4 . 4 7 2 1 1 . . 5 . . 1 . . . 12 18 . . . 3 . 8 3 . . Brawler 3 | . . . . . . . . . . 1 . . . . . . 1 1 . . . . . . . . . Duelist 8 | . . . 1 . 1 . . . . . . . . . . . . 3 . . . 1 . 1 1 . . Protector 3 | . . . . . . 1 . . . . . . . . . . . 1 . . 1 . . . . . . Researcher 1 | . . . . . . . . . . . . . . . . . . . . . . . . 1 . . . Sentry 56 | . . . 6 9 2 . . . . 3 . . . . 1 . 4 7 . 2 . 7 . 4 10 . 1 Demolisher 2 | . . . . . 2 . . . . . . . . . . . . . . . . . . . . . . Specialist 4 | . . . . . . . . . . . . . 1 . . . . 3 . . . . . . . . . Hunter 16 | . . . 1 1 1 . . . . 3 . . . 2 . . 2 1 . . . . . 2 3 . . Programmer 30 | . . . . . . . . . . 6 . . . . 2 . 6 3 . . . . 3 7 . 1 2 Heavy 1 | . . . . . . . . . . . . . . . . . . . . . . . . . . 1 . Behemoth 3 | . . . . . . 1 . . . . . . . . . . . . . . . 1 . 1 . . . Cetus Guard 7 | . . . . . . . . . . . . . . . . . . . 7 . . . . . . . . Quarantine Guard 12 | . . . . . . . . . . . . . . . . . . . . . . . 12 . . . . Enhanced Grunt 5 | . . . . . . . . 4 . . . . . . . . . . . . 1 . . . . . . Lightning 3 | . . . . . . . . . . . . . . . . . . . . . . . 3 . . . . Striker 2 | . . . . . . . . . . . . . . . . . . . . . . 2 . . . . . Executioner 3 | . . . . . . . . . . . . . 1 . . . . . . . . . . 2 . . . Alpha 7 2 | . . . . . . . . . . . . . . . . . . . . . . . . 2 . . . Subdweller 2 | . . 1 . . 1 . . . . . . . . . . . . . . . . . . . . . . Samaritan 2 | . . . . . . . 2 . . . . . . . . . . . . . . . . . . . . Butcher 1 | . . . . . . . . . . . . . . . . . . 1 . . . . . . . . . Mutant 1 | . . . . . . . . . . . . . 1 . . . . . . . . . . . . . . Revision 1 | . . . . . . . . . . . . . . . . . . . . . . 1 . . . . . Best Kill Streak 16 | 4 3 4 4 11 5 2 1 1 . 11 . 4 1 2 5 . 7 16 5 7 1 3 4 6 11 4 2 Combat Bots Only 11 | . 3 4 3 7 3 1 1 1 . 7 . 4 1 2 5 . 6 11 4 2 1 3 3 5 11 2 2 Max Kills in Single Turn 3 | 1 2 2 2 3 1 1 1 1 . 2 . 1 1 1 2 . 2 2 1 1 1 2 1 3 2 1 1 Gunslinging . | . . . . . . . . . . . . . . . . . . . . . . . . . . . . Exploded 3 | . 2 2 1 3 . . . . . . . . . . 2 . . . . . . . . 1 . . . Melee 1 | . . . . . . . . . . 1 . 1 1 . 1 . 1 . . . . . . . 1 1 1 Uniques/NPCs Destroyed . | . . . . . . . . . . . . . . . . . . . . . . . . . . . . Combat | -11 -10 -10 -8 -8 -8 -6 -6 -6 -5 -5 -5 -5 -5 -4 -4 -4 -4 -4 -4 -4 -4 -3 -3 -3 -2 -1 -1 -------- Run | Yrd Mat Sub Mat Sto Rec Fac Low Dat Pro Fac Upp Upp War Pro Fac Was Fac Ext Cet Arc Hub Res Qua Sec Res Acc Com Hostile Shots Fired 1654 | . 72 27 89 100 12 17 . 16 6 101 4 40 40 12 83 . 131 116 15 . 64 54 65 188 180 149 73 Missed 523 | . 17 7 26 23 2 4 . 1 4 18 3 13 13 4 29 . 47 51 6 . 26 16 18 65 54 51 25 Hits 1131 | . 55 20 63 77 10 13 . 15 2 83 1 27 27 8 54 . 84 65 9 . 38 38 47 123 126 98 48 Melee 13 | . . . 2 . . . . . . . . . 4 . . . . . . . . 1 . 5 1 . . Projectile 1118 | . 55 20 61 77 10 13 . 15 2 83 1 27 23 8 54 . 84 65 9 . 38 37 47 118 125 98 48 AOE 8 | . . . . . 1 . . . . . . . 4 . . . 2 . . . . . . 1 . . . Critical Strikes 69 | . . . 5 4 . . . . . 10 . 1 4 . 1 . 3 . 3 . 5 . 6 16 4 5 2 Damage Taken 20363 | . 652 227 889 1180 214 218 . 662 56 1645 20 479 919 122 915 . 1316 873 181 . 768 582 1484 1588 2195 2140 1038 Core 3456 | . 124 39 146 65 60 14 . 77 . 159 . 15 144 . 75 . 109 51 29 . 87 20 114 326 561 908 333 Absorbed by Shields 6771 | . . . . . 28 . . . . . . . 257 16 75 . 469 409 93 . 506 379 365 1176 1245 1340 413 Regen/Repaired (Parts) 10788 | . 110 . . 315 24 24 65 39 . 2363 414 110 448 272 277 99 743 807 182 12 284 1129 302 726 621 363 1059 Core Remaining (%) 61 | 100 . 34 . . 50 . . . 89 . . . . 68 . . . . . . 69 . . 64 61 . 22 Volleys Fired 1140 | 7 57 20 71 132 24 33 9 52 21 49 6 4 4 9 24 . 90 91 23 16 27 72 94 118 50 17 20 Largest 3 | 2 2 2 3 3 2 1 1 1 1 1 1 1 1 1 1 . 1 1 1 1 1 1 1 1 1 1 1 Hottest 564 | 40 120 120 184 140 115 112 112 309 309 309 484 484 484 484 484 . 564 124 124 124 124 124 86 86 64 45 45 Shots Fired 1409 | 14 112 32 170 226 33 33 9 52 21 47 6 4 4 8 24 . 90 91 23 16 27 72 93 115 50 17 20 Gun 337 | 14 100 . 115 107 1 . . . . . . . . . . . . . . . . . . . . . . Cannon 1052 | . 10 24 51 113 32 33 9 52 21 47 6 4 4 8 24 . 90 91 23 16 27 72 93 115 50 17 20 Launcher 19 | . 2 7 4 6 . . . . . . . . . . . . . . . . . . . . . . . Special 1 | . . 1 . . . . . . . . . . . . . . . . . . . . . . . . . Kinetic 898 | 14 100 . 6 160 13 4 . . . 14 . 4 . 3 14 . 71 91 23 16 27 72 93 86 50 17 20 Thermal 372 | . 10 25 160 60 10 15 . 52 21 3 6 . . . 10 . . . . . . . . . . . . Explosive 15 | . 2 7 4 2 . . . . . . . . . . . . . . . . . . . . . . . Electromagnetic 124 | . . . . 4 10 14 9 . . 30 . . 4 5 . . 19 . . . . . . 29 . . . Robot Hit Streak 23 | 7 14 11 12 14 6 4 4 9 . 7 . 9 10 1 6 . 10 14 10 4 4 11 15 14 20 23 4 Robot Miss Streak 7 | 1 4 1 4 5 3 4 1 1 . 3 . . 1 2 1 . 7 4 5 2 4 6 4 3 2 3 4 Penetration Max 1 | . . . . 1 . . . . . 1 . . . . . . . . 1 . 1 1 1 . 1 . . Secondary Targets 1 | . 1 . . . . . . . . . . . . . . . . . . . . . . . . . . Max Gunslinging Chain 1 | . 1 . . . . . . . . . . . . . . . . . . . . . . . . . . Capacitor 9 | . . . . . . . . . . . . . . . . . . . . . . . . 9 . . . Shots Hit Robots 751 | 8 72 9 100 128 17 14 5 16 . 29 . 3 2 1 9 . 53 66 12 14 6 41 42 57 37 3 7 Core Hits 385 | 5 22 6 42 58 16 7 2 8 . 17 . 3 1 2 14 . 35 45 11 6 4 16 15 26 17 2 5 Critical Kills 16 | . . . . . 1 . . . . . . . . . . . . . . . . . 1 8 5 . 1 Critical Parts Destroyed 26 | . . . . 2 . . . . . . . . . . . . . . . . . 5 4 10 3 1 1 Critical Strikes 81 | . . . 12 11 1 . . . . . . . . . . . 2 6 1 1 1 6 7 20 10 1 2 Burn 14 | . . . 12 2 . . . . . . . . . . . . . . . . . . . . . . . Destroy 48 | . . . . 2 1 . . . . . . . . . . . . . . . . 5 7 20 10 1 2 Blast 19 | . . . . 7 . . . . . . . . . . . . 2 6 1 1 1 1 . . . . . Melee Attacks 5 | . . 5 . . . . . . . . . . . . . . . . . . . . . . . . . Impact . | . . . . . . . . . . . . . . . . . . . . . . . . . . . . Slashing . | . . . . . . . . . . . . . . . . . . . . . . . . . . . . Piercing 5 | . . 5 . . . . . . . . . . . . . . . . . . . . . . . . . Sneak Attacks . | . . . . . . . . . . . . . . . . . . . . . . . . . . . . Combat Hostiles . | . . . . . . . . . . . . . . . . . . . . . . . . . . . . Follow-up Attacks . | . . . . . . . . . . . . . . . . . . . . . . . . . . . . Damage Inflicted 85171 | 99 927 410 1963 4883 995 1701 668 1664 11 4070 . 505 410 196 2060 . 7324 11666 2706 1914 1179 8391 9713 12788 6752 870 1306 Guns 3137 | 91 713 . 1056 1253 24 . . . . . . . . . . . . . . . . . . . . . . Cannons 76861 | . 87 155 545 3103 840 1701 668 1664 . 4024 . 316 395 163 971 . 6379 11606 2706 1914 1179 8391 9713 11746 6727 652 1216 Explosions 2697 | . 103 255 333 457 110 . . . . . . . . . 140 . 257 . . . . . . 1042 . . . Melee . | . . . . . . . . . . . . . . . . . . . . . . . . . . . . Ramming 2476 | 8 24 . 29 70 21 . . . 11 46 . 189 15 33 949 . 688 60 . . . . . . 25 218 90 Kinetic 65473 | 91 713 . 69 3495 226 189 . . . 1726 . 316 . 163 260 . 5285 11606 2706 1914 1179 8391 9713 8836 6727 652 1216 Thermal 6470 | . 87 155 1532 861 292 911 . 1664 . . . . . . 711 . 257 . . . . . . . . . . Explosive 2190 | . 103 255 333 457 . . . . . . . . . . . . . . . . . . . 1042 . . . Electromagnetic 8562 | . . . . . 456 601 668 . . 2298 . . 395 . 140 . 1094 . . . . . . 2910 . . . Impact . | . . . . . . . . . . . . . . . . . . . . . . . . . . . . Slashing . | . . . . . . . . . . . . . . . . . . . . . . . . . . . . Piercing . | . . . . . . . . . . . . . . . . . . . . . . . . . . . . Highest Corruption 15 | . . . . 3 3 . . . . 9 3 . . 7 . 7 10 10 9 9 15 . 8 15 1 . 1 Average Corruption 5 | . . . . 3 3 . . . . 6 2 . . 7 . 7 5 8 9 4 10 . 2 11 1 . 1 Corruption Purged 31 | . . . . . . . . . . 10 3 . . . . . 7 2 . 9 . . . . . . . Corruption Blocked . | . . . . . . . . . . . . . . . . . . . . . . . . . . . . Effects 282 | . . . . 48 31 . . . . 37 1 . . 4 . 2 23 36 10 6 2 . 31 50 . . 1 Message Errors 63 | . . . . 16 6 . . . . 5 . . . . . 1 5 9 . 1 . . 8 12 . . . Matter Fused 66 | . . . . 10 9 . . . . 11 . . . . . . 5 9 2 2 2 . 5 11 . . . Heat Flow Errors 37 | . . . . 2 3 . . . . 4 . . . 3 . . 3 5 2 1 . . 5 9 . . . Energy Discharges 33 | . . . . 6 3 . . . . 5 . . . . . . 1 4 1 . . . 6 7 . . . Parts Rejected 5 | . . . . 1 . . . . . 1 . . . . . . . . 1 . . . . 1 . . 1 Parts Fused 4 | . . . . . . . . . . 1 . . . . . . 1 . . . . . 2 . . . . Data Loss (minor) 34 | . . . . 4 6 . . . . 6 1 . . . . . 4 7 2 . . . 1 3 . . . Data Loss (major) 16 | . . . . 3 3 . . . . 1 . . . . . 1 3 1 1 . . . 2 1 . . . Misfires 4 | . . . . 4 . . . . . . . . . . . . . . . . . . . . . . . Alerts 13 | . . . . 2 1 . . . . 1 . . . . . . 1 1 1 2 . . 1 3 . . . Weapon Failures 7 | . . . . . . . . . . 2 . . . 1 . . . . . . . . 1 3 . . . Overload Shots . | . . . . . . . . . . . . . . . . . . . . . . . . . . . . Overflow Damage 14721 | . 6 10 . 317 135 364 317 74 . 562 . 104 35 . 334 . 1127 1245 188 308 49 2163 1888 3783 875 335 502 Projectiles 14119 | . . 10 . 317 135 364 317 74 . 562 . 79 35 . 218 . 853 1245 188 308 49 2163 1888 3658 875 279 502 Explosions 131 | . 6 . . . . . . . . . . . . . . . . . . . . . . 125 . . . Melee 471 | . . . . . . . . . . . . 25 . . 116 . 274 . . . . . . . . 56 . Knockbacks 93 | . . . 1 9 . . . . . 2 . . . . 4 . 20 24 3 4 1 6 4 6 5 1 3 Impact 12 | . . . 1 . . . . . . 1 . . . . 4 . 6 . . . . . . . . . . Kinetic 73 | . . . . 8 . . . . . 1 . . . . . . 11 23 3 3 1 6 3 6 4 1 3 Secondary 8 | . . . . 1 . . . . . . . . . . . . 3 1 . 1 . . 1 . 1 . . Self-Inflicted Damage 86 | . 30 . . . 32 . . . . . . . . . 24 . . . . . . . . . . . . Shots 3 | . 1 . . . 1 . . . . . . . . . 1 . . . . . . . . . . . . Rammed 41 | 2 7 . 5 10 1 . . . . 4 . 10 . 2 . . . . . . . . . . . . . Targets Rammed 106 | 2 7 . 5 10 1 . . . 1 5 . 11 1 2 31 . 15 3 . . . . . . 1 4 7 Kicked 62 | . . . . . . . . . 1 . . . . . 31 . 15 3 . . . . . . 1 4 7 Crushed 3 | . . . . . . . . . . 1 . 1 1 . . . . . . . . . . . . . . Highest Temperature 589 | . 240 24 421 273 232 210 210 445 432 589 372 486 381 448 448 . 444 231 216 78 24 292 358 271 4 15 . Average Temperature 100 | . 60 16 95 44 53 66 83 159 144 140 201 211 189 188 170 . 104 24 103 12 10 79 82 100 3 8 . Received Heat Transfer 2513 | . 249 114 261 423 24 12 . . 12 72 9 356 100 . 63 . 166 172 . . 36 51 4 80 189 108 12 Effects 45 | . 1 . 3 3 . . . 2 1 20 4 . 1 1 6 . 2 . . . . . 1 . . . . Shutdowns 5 | . . . . . . . . . . 2 . . . 1 1 . . . . . . . 1 . . . . Energy Bleed 12 | . . . 2 . . . . 2 . 3 2 . . . 1 . 2 . . . . . . . . . . Interference 21 | . 1 . . 3 . . . . 1 10 2 . . . 4 . . . . . . . . . . . . Matter Decay 2 | . . . 1 . . . . . . . . . 1 . . . . . . . . . . . . . . Damage (major) 5 | . . . . . . . . . . 5 . . . . . . . . . . . . . . . . . Siege Activations . | . . . . . . . . . . . . . . . . . . . . . . . . . . . . Martial Activations . | . . . . . . . . . . . . . . . . . . . . . . . . . . . . Shielding Activations . | . . . . . . . . . . . . . . . . . . . . . . . . . . . . Robots Disrupted . | . . . . . . . . . . . . . . . . . . . . . . . . . . . . Combat Hostiles . | . . . . . . . . . . . . . . . . . . . . . . . . . . . . Robots Corrupted 30 | . . . . . . 1 1 . . 6 . . 2 . 6 . 6 . . . . . . 7 . 1 . Combat Hostiles 22 | . . . . . . 1 . . . 5 . . 2 . 5 . 3 . . . . . . 6 . . . Parts Fried 108 | . . . . . 2 7 6 . . 27 . . 11 . 2 . 26 1 . . . . . 25 . 1 . Impact Corruptions 32 | . . . . . . . . . . 1 . 1 . . 9 . 12 1 . 1 . . 1 . 4 2 . Robots Melted 1 | . . . 1 . . . . . . . . . . . . . . . . . . . . . . . . Combat Hostiles . | . . . . . . . . . . . . . . . . . . . . . . . . . . . . Parts Melted 22 | . . . 18 2 . 1 . . . . . . . . 1 . . . . . . . . . . . . Heat Transferred 8404 | . 185 333 4477 1628 572 37 . 800 . . . . . . 222 . 150 . . . . . . . . . . Parts Sabotaged 1 | . . . . . . . . . . . . . 1 . . . . . . . . . . . . . . Parts Stolen . | . . . . . . . . . . . . . . . . . . . . . . . . . . . . Parts Stripped . | . . . . . . . . . . . . . . . . . . . . . . . . . . . . Power Chain Reactions 4 | . . . . 3 1 . . . . . . . . . . . . . . . . . . . . . . Alert | -11 -10 -10 -8 -8 -8 -6 -6 -6 -5 -5 -5 -5 -5 -4 -4 -4 -4 -4 -4 -4 -4 -3 -3 -3 -2 -1 -1 ------- Run | Yrd Mat Sub Mat Sto Rec Fac Low Dat Pro Fac Upp Upp War Pro Fac Was Fac Ext Cet Arc Hub Res Qua Sec Res Acc Com Maximum Alert Level 5 | . . . . 1 . 2 . . . 1 . . . . 3 1 4 5 4 3 2 2 1 5 5 5 5 Low Security (%) 52 | 100 100 . 100 73 100 . . . . 73 . . . . . 34 37 . . . 77 . 53 45 . . . Level 1 25 | . . . . 26 . 98 . . . 26 . . . . . 65 31 . . 51 6 35 46 4 . . . Level 2 13 | . . . . . . 1 . . . . . . . . 55 . 10 44 . 37 15 64 . 41 . . . Level 3 4 | . . . . . . . . . . . . . . . 44 . 19 41 1 11 . . . . . . . Level 4 1 | . . . . . . . . . . . . . . . . . . 8 98 . . . . . 5 . . Level 5 . | . . . . . . . . . . . . . . . . . . . . . . . . . . 5 39 High Security . | . . . . . . . . . . . . . . . . . . 5 . . . . . . . . 60 Max Security 2 | . . . . . . . . . . . . . . . . . . . . . . . . 8 94 94 . Peak Influence 3379 | 10 86 . 124 333 184 404 . . . 329 . . . . 732 226 1100 1738 1398 803 646 544 335 1985 2730 3379 2702 Initial 2164 | . . . . 20 15 310 . . . . . . . . 600 226 116 532 1100 543 70 333 237 94 1116 1637 2164 Average 300 | 2 9 . 43 126 47 311 . . . 111 . . . . 672 200 369 855 1285 432 203 426 152 460 2033 2554 2473 Influence Increases 16993 | 20 313 230 474 1056 589 753 20 . 15 640 270 120 90 50 1158 . 1445 1790 398 310 736 687 834 1473 1140 1765 617 Destroy 0b10 Robot/C 6440 | . 140 80 240 440 180 200 20 . . 360 . 80 60 40 240 . 600 1000 160 80 120 340 360 800 480 200 220 Destroy 0b10 Robot/NC 645 | 20 15 . 50 155 40 30 . . . 35 . . . . 10 . 80 60 10 25 10 25 10 50 5 10 5 Destroy Leader 1222 | . 34 . 100 156 . 54 . . . 94 . 10 . 10 42 . 130 94 . . 40 104 144 98 32 30 50 Allied During Kill 1559 | . . . . 45 188 164 . . . . . . . . . . . 474 157 105 123 . . 53 107 58 85 Successful Hack 393 | . 35 . 17 33 12 13 . . . 20 . . . . 47 . 68 7 . . . 70 51 20 . . . Select Force Hacks 180 | . 60 . . . 120 . . . . . . . . . . . . . . . . . . . . . . Disable Machine 1215 | . . . 30 120 15 30 . . . 30 . . . . 15 . 150 60 15 60 180 15 180 225 15 60 15 Anti-Garrison Action 800 | . . . . . . . . . . . . . . . . . 150 . . . . . . . 150 450 50 Destroy Structure 1694 | . 14 . 7 77 34 12 . . . 26 . . . . 24 . 192 80 56 40 248 118 74 122 231 147 192 Advance Influence 850 | . . . . . . 250 . . . . . . . . 600 . . . . . . . . . . . . Partial Spotted 75 | . . . . . . . . . . 15 . . . . 30 . . 15 . . 15 . . . . . . Lose Combat Pursuer 1920 | . 15 150 30 30 . . . . 15 60 270 30 30 . 150 . 75 . . . . 15 15 105 120 810 . Influence Decreases 15816 | 20 291 252 424 1065 486 672 245 . 15 365 538 101 116 50 512 480 524 1139 906 1465 303 901 1088 568 879 1113 1298 Entered New Map 6847 | . . 11 . 30 26 84 84 . . . 103 2 26 . . 420 50 555 766 815 133 303 185 74 869 1093 1218 Time Decay 7657 | 20 289 231 414 695 400 458 161 . 15 355 435 99 90 50 302 40 464 404 120 630 110 598 753 474 . . 50 Search Patrol Dispatched 200 | . . . . . . . . . . . . . . . 200 . . . . . . . . . . . . Lost Part 122 | . 2 10 10 20 . . . . . 10 . . . . . . 10 . . . . . . 20 10 20 10 Lost Ally 480 | . . . . 20 . 130 . . . . . . . . 10 20 . 180 20 20 60 . . . . . 20 Purge Threat 510 | . . . . 300 60 . . . . . . . . . . . . . . . . . 150 . . . . Squads Dispatched 97 | . 2 . 2 4 . 4 . . . 4 . . . . 3 . 17 7 . . 5 5 1 17 1 20 5 Investigation 17 | . 2 . . 1 . 1 . . . . . . . . 1 . 7 2 . . . 2 . . 1 . . Extermination 15 | . . . . . . 2 . . . 3 . . . . 2 . 4 . . . . . 1 3 . . . Reinforcement 16 | . . . 2 1 . 1 . . . 1 . . . . . . 1 2 . . 1 3 . 2 . 1 1 Assault 45 | . . . . 2 . . . . . . . . . . . . 4 3 . . 2 . . 12 . 18 4 Garrison 4 | . . . . . . . . . . . . . . . . . 1 . . . 2 . . . . 1 . Intercept . | . . . . . . . . . . . . . . . . . . . . . . . . . . . . Searches Triggered 2 | . . . . . . . . . . . . . . . 2 . . . . . . . . . . . . Construction Impeded 1 | . . . 1 . . . . . . . . . . . . . . . . . . . . . . . . Haulers Reinforced 3 | . . . . . . 1 . . . . . . . . . . 1 . . . . 1 . . . . . Active Scanning Responses . | . . . . . . . . . . . . . . . . . . . . . . . . . . . . Cargo Convoy Interrupts . | . . . . . . . . . . . . . . . . . . . . . . . . . . . . Stealth | -11 -10 -10 -8 -8 -8 -6 -6 -6 -5 -5 -5 -5 -5 -4 -4 -4 -4 -4 -4 -4 -4 -3 -3 -3 -2 -1 -1 --------- Run | Yrd Mat Sub Mat Sto Rec Fac Low Dat Pro Fac Upp Upp War Pro Fac Was Fac Ext Cet Arc Hub Res Qua Sec Res Acc Com Distress Signals 34 | . 1 . 2 3 1 . . . . 1 . . . . . . 2 1 2 . 1 4 . 4 8 4 . Communications Jammed 15 | . . . . . . . . . . . . . . . . . . . . . . . 15 . . . . Distress Signals 15 | . . . . . . . . . . . . . . . . . . . . . . . 15 . . . . Times Spotted 639 | . 18 9 27 26 8 13 . 4 1 26 13 7 83 7 28 6 39 47 7 9 23 28 17 51 49 74 19 Peak Tracking Total 28 | . 5 4 5 5 5 3 . 1 1 5 7 5 11 4 5 6 6 12 5 2 16 5 3 10 28 23 10 Tactical Retreats 48 | . 1 2 2 1 . . . . 1 2 8 1 2 . 5 . 5 . . . . 1 1 4 3 9 . ECM-based Alert Blocks 2 | . . . . . . . . . . . . . . . . . 2 . . . . . . . . . . Traps | -11 -10 -10 -8 -8 -8 -6 -6 -6 -5 -5 -5 -5 -5 -4 -4 -4 -4 -4 -4 -4 -4 -3 -3 -3 -2 -1 -1 ------- Run | Yrd Mat Sub Mat Sto Rec Fac Low Dat Pro Fac Upp Upp War Pro Fac Was Fac Ext Cet Arc Hub Res Qua Sec Res Acc Com Traps Triggered 24 | . . . . 3 . . . . . 4 . . . . 2 . 5 1 . . . 1 6 . . 2 . Indirectly . | . . . . . . . . . . . . . . . . . . . . . . . . . . . . Trap Hack Attempts . | . . . . . . . . . . . . . . . . . . . . . . . . . . . . Triggered . | . . . . . . . . . . . . . . . . . . . . . . . . . . . . Disarmed . | . . . . . . . . . . . . . . . . . . . . . . . . . . . . Reprogrammed . | . . . . . . . . . . . . . . . . . . . . . . . . . . . . Reused . | . . . . . . . . . . . . . . . . . . . . . . . . . . . . Traps Extracted . | . . . . . . . . . . . . . . . . . . . . . . . . . . . . Installed . | . . . . . . . . . . . . . . . . . . . . . . . . . . . . Triggered . | . . . . . . . . . . . . . . . . . . . . . . . . . . . . Most Traps Carried 1 | . . . . . . . . . . . 1 1 1 . . . . . . . . . . . . . . Time Bombs Activated 1 | . . . . . . . . . . . . . 1 . . . . . . . . . . . . . . Exploded 1 | . . . . . . . . . . . . . 1 . . . . . . . . . . . . . . Machines | -11 -10 -10 -8 -8 -8 -6 -6 -6 -5 -5 -5 -5 -5 -4 -4 -4 -4 -4 -4 -4 -4 -3 -3 -3 -2 -1 -1 ---------- Run | Yrd Mat Sub Mat Sto Rec Fac Low Dat Pro Fac Upp Upp War Pro Fac Was Fac Ext Cet Arc Hub Res Qua Sec Res Acc Com Machines Disabled 90 | . . . 2 8 1 2 . 1 . 2 . . . . 1 . 11 4 1 4 12 1 12 16 2 7 3 Max in Single Turn 4 | . . . 2 2 1 1 . 1 . 1 . . . . 1 . 4 1 1 1 1 1 1 3 1 1 2 Garrison Access 10 | . . . . 1 . . . . . . . . . . 1 . 1 . . . 1 1 . . 2 3 . Phase Generator 1 | . . . . . . . . . . . . . . . . . . . . . . . . . . . 1 Network Hub 1 | . . . . . . . . . . . . . . . . . . . . . 1 . . . . . . Machines Repaired . | . . . . . . . . . . . . . . . . . . . . . . . . . . . . Machines Dismantled . | . . . . . . . . . . . . . . . . . . . . . . . . . . . . Machines Sabotaged . | . . . . . . . . . . . . . . . . . . . . . . . . . . . . Overloaded Fab Kills . | . . . . . . . . . . . . . . . . . . . . . . . . . . . . Hacking | -11 -10 -10 -8 -8 -8 -6 -6 -6 -5 -5 -5 -5 -5 -4 -4 -4 -4 -4 -4 -4 -4 -3 -3 -3 -2 -1 -1 --------- Run | Yrd Mat Sub Mat Sto Rec Fac Low Dat Pro Fac Upp Upp War Pro Fac Was Fac Ext Cet Arc Hub Res Qua Sec Res Acc Com Machines Accessed 124 | . 11 . 7 16 11 3 1 3 . 6 1 . 2 . 10 . 17 7 . . 2 10 11 4 1 1 . Terminals 81 | . 8 . 5 12 6 3 . . . 5 . . . . 3 . 11 7 . . 2 5 9 4 1 . . Fabricators 6 | . . . . . . . . . . . . . . . 3 . 3 . . . . . . . . . . Repair Stations 4 | . 1 . . 2 . . . . . . . . . . . . . . . . . . 1 . . . . Recycling Units 13 | . 2 . . 1 4 . . . . 1 . . . . 2 . 2 . . . . 1 . . . . . Scanalyzers 6 | . . . 1 . . . . . . . . . . . 1 . 1 . . . . 2 1 . . . . Garrison Access 6 | . . . 1 1 . . . . . . . . . . 1 . . . . . . 2 . . . 1 . Total Hacks 322 | . 26 . 19 48 30 11 1 24 . 17 1 . 5 . 20 . 37 13 . . 5 25 21 11 6 2 . Successful 173 | . 18 . 12 30 24 4 1 24 . 10 1 . 5 . 12 . 14 1 . . 1 6 7 3 . . . Failed 149 | . 8 . 7 18 6 7 . . . 7 . . . . 8 . 23 12 . . 4 19 14 8 6 2 . Catastrophic 33 | . . . . . . 3 . . . . . . . . . . 7 4 . . 2 7 5 2 2 1 . Database Lockouts . | . . . . . . . . . . . . . . . . . . . . . . . . . . . . Manual 136 | . 19 . 12 21 15 6 . . . 6 . . 2 . 7 . 15 5 1 . 1 5 11 4 6 . . Terminals 214 | . 21 . 17 38 14 11 . . . 15 . . . . 8 . 23 13 . . 5 15 17 11 6 . . Fabricators 12 | . . . . . . . . . . . . . . . 6 . 6 . . . . . . . . . . Repair Stations 12 | . 3 . . 7 . . . . . . . . . . . . . . . . . . 2 . . . . Recycling Units 28 | . 2 . . 2 14 . . . . 2 . . . . 3 . 4 . . . . 1 . . . . . Scanalyzers 13 | . . . 1 . . . . . . . . . . . 2 . 4 . . . . 4 2 . . . . Garrison Access 10 | . . . 1 1 . . . . . . . . . . 1 . . . . . . 5 . . . 2 . Terminal Hacks 91 | . 6 . 6 15 5 3 1 24 . 7 1 . 5 . 3 . 4 1 . . 1 3 3 3 . . . Record 6 | . . . . . . . . 6 . . . . . . . . . . . . . . . . . . . Part Schematic 17 | . 1 . . 2 1 2 . 11 . . . . . . . . . . . . . . . . . . . Robot Schematic 4 | . . . . . . . . 4 . . . . . . . . . . . . . . . . . . . Robot Analysis 4 | . 2 . . 1 1 . . . . . . . . . . . . . . . . . . . . . . Prototype ID Bank 11 | . 1 . 1 1 . . . 3 . 1 . . 4 . . . . . . . . . . . . . . Open Door 9 | . . . . 3 . . 1 . . . 1 . 1 . . . 1 1 . . . . . 1 . . . Level Access Points 2 | . . . . . . . . . . . . . . . 1 . . . . . . . . 1 . . . Branch Access Points 4 | . . . . . . 1 . . . 1 . . . . 1 . 1 . . . . . . . . . . Emergency Access Points 1 | . . . . . . . . . . 1 . . . . . . . . . . . . . . . . . Terminal Index 5 | . . . 1 1 . . . . . 1 . . . . . . 1 . . . . 1 . . . . . Garrison Index 1 | . . . . . . . . . . . . . . . . . . . . . . . 1 . . . . Alert Level 7 | . . . 1 2 . . . . . 1 . . . . 1 . . . . . 1 . 1 . . . . Unreport Threat 4 | . . . . 2 1 . . . . . . . . . . . . . . . . . 1 . . . . Locate Traps 6 | . 2 . 1 1 . . . . . 1 . . . . . . . . . . . 1 . . . . . Hauler Manifests 3 | . . . 1 1 . . . . . . . . . . . . . . . . . 1 . . . . . Registered Components 3 | . . . 1 . . . . . . 1 . . . . . . 1 . . . . . . . . . . Zone Layout 1 | . . . . 1 . . . . . . . . . . . . . . . . . . . . . . . Activate Exoskeleton 1 | . . . . . . . . . . . . . . . . . . . . . . . . 1 . . . Release Object 2 | . . . . . 2 . . . . . . . . . . . . . . . . . . . . . . Fabricator Hacks 7 | . . . . . . . . . . . . . . . 4 . 3 . . . . . . . . . . Network Status 1 | . . . . . . . . . . . . . . . . . 1 . . . . . . . . . . Load Schematic 5 | . . . . . . . . . . . . . . . 3 . 2 . . . . . . . . . . Build 1 | . . . . . . . . . . . . . . . 1 . . . . . . . . . . . . Repair Station Hacks 10 | . 2 . . 6 . . . . . . . . . . . . . . . . . . 2 . . . . Scan Component 5 | . 1 . . 3 . . . . . . . . . . . . . . . . . . 1 . . . . Repair 5 | . 1 . . 3 . . . . . . . . . . . . . . . . . . 1 . . . . Recycling Unit Hacks 8 | . . . . 1 4 . . . . 1 . . . . . . 2 . . . . . . . . . . Process 1 | . . . . . . . . . . . . . . . . . 1 . . . . . . . . . . Retrieve Components 7 | . . . . 1 4 . . . . 1 . . . . . . 1 . . . . . . . . . . Scanalyzer 6 | . . . 1 . . . . . . . . . . . 1 . 2 . . . . 1 1 . . . . Insert Component 4 | . . . . . . . . . . . . . . . 1 . 1 . . . . 1 1 . . . . Analyze 1 | . . . . . . . . . . . . . . . . . 1 . . . . . . . . . . Retrieve Study 1 | . . . 1 . . . . . . . . . . . . . . . . . . . . . . . . Garrison Access Hacks 3 | . . . . 1 . . . . . . . . . . 1 . . . . . . 1 . . . . . Seal Access 3 | . . . . 1 . . . . . . . . . . 1 . . . . . . 1 . . . . . Unauthorized Hacks 48 | . 10 . 5 7 15 1 . . . 2 . . . . 3 . 3 . . . . 1 1 . . . . Terminals 34 | . 8 . 5 7 7 1 . . . 1 . . . . 2 . 1 . . . . 1 1 . . . . Assimilate 4 | . . . . 1 . . . . . 1 . . . . 1 . . . . . . . 1 . . . . Botnet 13 | . 2 . 2 2 3 1 . . . . . . . . 1 . 1 . . . . 1 . . . . . Operators 3 | . 1 . 1 1 . . . . . . . . . . . . . . . . . . . . . . . Skim 14 | . 5 . 2 3 4 . . . . . . . . . . . . . . . . . . . . . . Fabricators 3 | . . . . . . . . . . . . . . . 1 . 2 . . . . . . . . . . Recompile 3 | . . . . . . . . . . . . . . . 1 . 2 . . . . . . . . . . Repair Stations . | . . . . . . . . . . . . . . . . . . . . . . . . . . . . Recycling Units 11 | . 2 . . . 8 . . . . 1 . . . . . . . . . . . . . . . . . Reject 1 | . . . . . 1 . . . . . . . . . . . . . . . . . . . . . . Recyclers 2 | . . . . . 1 . . . . 1 . . . . . . . . . . . . . . . . . Mask 2 | . . . . . 2 . . . . . . . . . . . . . . . . . . . . . . Tunnel 6 | . 2 . . . 4 . . . . . . . . . . . . . . . . . . . . . . Scanalyzers . | . . . . . . . . . . . . . . . . . . . . . . . . . . . . Garrison Access . | . . . . . . . . . . . . . . . . . . . . . . . . . . . . Data Cores Recovered 1 | . . . . . . . . . . . . . . . . . . . . . . . . 1 . . . Used 1 | . . . . . . . . . . . . . . . . . . . . . . . . 1 . . . Hacking Detections 92 | . 9 . 7 11 5 3 . . . 5 . . . . 7 . 15 7 . . 2 9 9 1 1 1 . Full Trace Events 9 | . . . . . 1 1 . . . . . . . . . . 4 1 . . . 1 . . 1 . . Feedback Events . | . . . . . . . . . . . . . . . . . . . . . . . . . . . . Feedback Blocked . | . . . . . . . . . . . . . . . . . . . . . . . . . . . . Robot Schematics Acquired 4 | . . . . . . . . 4 . . . . . . . . . . . . . . . . . . . Robots Built . | . . . . . . . . . . . . . . . . . . . . . . . . . . . . Authchips . | . . . . . . . . . . . . . . . . . . . . . . . . . . . . Time . | . . . . . . . . . . . . . . . . . . . . . . . . . . . . Total Robot Build Rating . | . . . . . . . . . . . . . . . . . . . . . . . . . . . . Part Schematics Acquired 22 | . 1 . . 2 1 2 . 11 . . . . . . . . 1 . . . . . 4 . . . . Parts Built . | . . . . . . . . . . . . . . . . . . . . . . . . . . . . Authchips 1 | . . . . . . . . . . . . . . . 1 . . . . . . . . . . . . Time 31 | . . . . . . . . . . . . . . . 31 . . . . . . . . . . . . Total Part Build Rating . | . . . . . . . . . . . . . . . . . . . . . . . . . . . . Part Studies Acquired 1 | . . . 1 . . . . . . . . . . . . . . . . . . . . . . . . Parts Repaired 5 | . 1 . . 3 . . . . . . . . . . . . . . . . . . 1 . . . . Time 227 | . 26 . . 102 . . . . . . . . . . . . . . . . . . 99 . . . . Parts Recycled . | . . . . . . . . . . . . . . . . . . . . . . . . . . . . Recycled Matter . | . . . . . . . . . . . . . . . . . . . . . . . . . . . . Retrieved Matter . | . . . . . . . . . . . . . . . . . . . . . . . . . . . . Retrieved Components 24 | . . . . 9 15 . . . . . . . . . . . . . . . . . . . . . . Parts Scanalyzed 1 | . . . . . . . . . . . . . . . . . 1 . . . . . . . . . . Part Schematics Acquired 1 | . . . . . . . . . . . . . . . . . 1 . . . . . . . . . . Parts Damaged . | . . . . . . . . . . . . . . . . . . . . . . . . . . . . Bothacking | -11 -10 -10 -8 -8 -8 -6 -6 -6 -5 -5 -5 -5 -5 -4 -4 -4 -4 -4 -4 -4 -4 -3 -3 -3 -2 -1 -1 ------------ Run | Yrd Mat Sub Mat Sto Rec Fac Low Dat Pro Fac Upp Upp War Pro Fac Was Fac Ext Cet Arc Hub Res Qua Sec Res Acc Com Used RIF Installer . | . . . . . . . . . . . . . . . . . . . . . . . . . . . . Robots Hacked . | . . . . . . . . . . . . . . . . . . . . . . . . . . . . Non-combat . | . . . . . . . . . . . . . . . . . . . . . . . . . . . . Combat . | . . . . . . . . . . . . . . . . . . . . . . . . . . . . Robot Hacks Applied . | . . . . . . . . . . . . . . . . . . . . . . . . . . . . Relay Couplers Released 6 | . . . . . . . . . . . . . . . . . . . . . 3 1 . . . 2 . Machine Destruction 6 | . . . . . . . . . . . . . . . . . . . . . 3 1 . . . 2 . Fabnet Peak Effective % . | . . . . . . . . . . . . . . . . . . . . . . . . . . . . Robots Rewired 14 | . . . . . 2 . . . . . . . . . . . . 12 . . . . . . . . . Allies Hacked . | . . . . . . . . . . . . . . . . . . . . . . . . . . . . Hacks Repelled . | . . . . . . . . . . . . . . . . . . . . . . . . . . . . Allies | -11 -10 -10 -8 -8 -8 -6 -6 -6 -5 -5 -5 -5 -5 -4 -4 -4 -4 -4 -4 -4 -4 -3 -3 -3 -2 -1 -1 -------- Run | Yrd Mat Sub Mat Sto Rec Fac Low Dat Pro Fac Upp Upp War Pro Fac Was Fac Ext Cet Arc Hub Res Qua Sec Res Acc Com Total Allies 47 | . . . . 13 2 . . . . 1 . . . . 1 1 . 16 5 . . . . 1 . . 7 Largest Group 14 | . . . . 12 14 13 . . . 1 . . . . 1 1 . 9 11 11 9 . . 1 1 1 8 Highest-Rated Group 1305 | . . . . 229 290 256 . . . 10 . . . . 10 46 . 420 843 843 629 . . 1204 1204 1204 1305 Highest-Rated Ally 1204 | . . . . 31 34 31 . . . 10 . . . . 10 46 . 159 159 159 96 . . 1204 1204 1204 1204 Total Orders 12 | . . . . 3 5 . . . . . . . . . . . . . 3 . 1 . . . . . . STAY 8 | . . . . 2 3 . . . . . . . . . . . . . 2 . 1 . . . . . . FOLLOW 4 | . . . . 1 2 . . . . . . . . . . . . . 1 . . . . . . . . Ally Attacks 348 | . . . . 3 10 51 . . . . . . . . . 9 . 84 23 32 51 . . 11 27 27 20 Total Damage 14426 | . . . . 46 180 625 . . . . . . . . . 339 . 2302 440 1031 2022 . . 871 2358 2921 1291 Kills 59 | . . . . 1 4 7 . . . . . . . . . . . 11 1 2 11 . . 5 3 7 7 Allies Corrupted 8 | . . . . . . 5 . . . . . . . . . . . . . . 3 . . . . . . Allies Melted 1 | . . . . . . . . . . . . . 1 . . . . . . . . . . . . . . Intel | -11 -10 -10 -8 -8 -8 -6 -6 -6 -5 -5 -5 -5 -5 -4 -4 -4 -4 -4 -4 -4 -4 -3 -3 -3 -2 -1 -1 ------- Run | Yrd Mat Sub Mat Sto Rec Fac Low Dat Pro Fac Upp Upp War Pro Fac Was Fac Ext Cet Arc Hub Res Qua Sec Res Acc Com Active Infowar (turns) 27194 | 28 2467 521 1857 2906 1250 1094 1413 214 1066 974 1496 557 941 354 551 92 867 566 . . 169 1725 4397 1323 168 . 198 Sensors 11022 | . . . . . . . . 195 1066 721 . . . . . . 647 566 . . 169 1720 4340 1323 168 . 107 IFF 102 | . . . . . . . . . . . . . . . 102 . . . . . . . . . . . . Terrain 1340 | . . . . . . . . . . . . . . . . . . . . . . 1046 . 96 32 . 166 Seismic 15382 | 28 2467 521 1857 2906 1250 1094 1413 19 . 253 1496 557 853 14 364 73 217 . . . . . . . . . . Cloaking 734 | . . . . . . . . . . . . . 110 353 165 . 106 . . . . . . . . . . Jamming 1224 | . . . . . . . . . . . . . . 337 25 19 . . . . . . 843 . . . . ECM 32 | . . . . . . . . . . . . . . . 26 . 3 . . . . 2 . 1 . . . Robot Analysis Total 4 | . 2 . . 1 1 . . . . . . . . . . . . . . . . . . . . . . Derelict Logs Recovered 6 | . . . . . . . 2 . 1 . 1 2 . . . . . . . . . . . . . . . Drone Launches . | . . . . . . . . . . . . . . . . . . . . . . . . . . . . Drone Recoveries . | . . . . . . . . . . . . . . . . . . . . . . . . . . . . Exploration | -11 -10 -10 -8 -8 -8 -6 -6 -6 -5 -5 -5 -5 -5 -4 -4 -4 -4 -4 -4 -4 -4 -3 -3 -3 -2 -1 -1 ------------- Run | Yrd Mat Sub Mat Sto Rec Fac Low Dat Pro Fac Upp Upp War Pro Fac Was Fac Ext Cet Arc Hub Res Qua Sec Res Acc Com Turns Passed 34328 | 108 2467 547 1908 2953 2607 1149 1428 1132 1197 1327 1505 557 1011 485 675 92 1168 1013 253 2186 233 1907 4397 1323 213 234 253 Spaces Moved 22946 | 42 779 269 895 1172 1020 745 1094 483 656 992 1088 666 864 217 907 128 1484 798 176 76 184 1499 4177 1200 350 639 346 Core 2 | 2 . . . . . . . . . . . . . . . . . . . . . . . . . . . Treads 6294 | 40 779 269 895 1172 634 . . . . 637 290 666 864 48 . . . . . . . . . . . . . Legs 8308 | . . . . . 386 88 1081 483 656 230 77 . . . 900 128 1484 798 176 76 184 1064 . . 53 218 226 Wheels . | . . . . . . . . . . . . . . . . . . . . . . . . . . . . Hover 7467 | . . . . . . 657 13 . . 125 721 . . 169 7 . . . . . . 435 4177 1086 77 . . Flight . | . . . . . . . . . . . . . . . . . . . . . . . . . . . . Fastest Speed 48 | 50 160 160 160 145 145 121 121 121 121 81 48 72 72 99 52 52 52 52 80 80 80 77 77 77 77 77 77 Average Speed 103 | 154 160 160 164 193 211 131 121 121 121 98 78 72 78 103 52 52 52 64 80 80 81 109 77 77 77 77 77 Slowest Speed 282 | 160 160 160 253 253 282 221 121 121 121 128 160 72 119 119 99 52 52 80 80 80 122 122 77 77 77 77 77 Overloaded Moves 449 | . . . . . . . . . . . 449 . . . . . . . . . . . . . . . . Propulsion Burnouts . | . . . . . . . . . . . . . . . . . . . . . . . . . . . . Robots Hopped 5 | . . . . . . . . . . . . . . . . . . . . . . 5 . . . . . Potential Cave-ins 29 | . . . . . . . . . 5 . . . 4 . . . 6 . . . . . . 14 . . . Cave-ins Triggered 1 | . . . . . . . . . . . . . . . . . . . . . . . . 1 . . . Microwarps 48 | . . . . . . . . . . . . . . . . . . . . . . . . 5 12 24 7 Exploration Rate (%) 56 | 3 98 28 56 86 98 21 98 80 72 24 79 81 83 39 23 76 38 82 67 73 25 45 98 54 13 19 17 Regions Visited 27 Branch Regions 17 Pre-discovered Areas 9 | . 2 . . 1 4 . 1 1 . . . . . . . . . . . . . . . . . . . Known Exits Taken 20 | . 1 1 1 1 . 1 . 1 1 1 1 . . 1 . . 1 1 1 1 1 1 1 1 1 1 . Unknown Exits Taken 5 | 1 . . . . 1 . 1 . . . . 1 1 . . . . . . . . . . . . . . Scrap Searched 12 | . . . . . . . 3 . 1 . 2 5 . 1 . . . . . . . . . . . . . Spaces Dug 150 | . . 12 2 6 1 4 1 7 9 4 3 1 . 2 7 . 20 . . . 32 13 8 9 4 3 2 Terrain Destroyed 748 | . 13 41 8 76 14 12 3 9 21 14 6 2 . 5 14 . 123 39 29 26 69 61 43 51 12 6 51 Melee 1 | . . 1 . . . . . . . . . . . . . . . . . . . . . . . . . Projectile 571 | . . . 8 47 14 12 3 9 21 14 6 2 . 5 14 . 87 39 29 26 69 61 43 35 12 6 9 AOE 176 | . 13 40 . 29 . . . . . . . . . . . . 36 . . . . . . 16 . . 42 Terrain Rammed . | . . . . . . . . . . . . . . . . . . . . . . . . . . . . Walls Destroyed . | . . . . . . . . . . . . . . . . . . . . . . . . . . . . Machines Disabled . | . . . . . . . . . . . . . . . . . . . . . . . . . . . . Actions | -11 -10 -10 -8 -8 -8 -6 -6 -6 -5 -5 -5 -5 -5 -4 -4 -4 -4 -4 -4 -4 -4 -3 -3 -3 -2 -1 -1 --------- Run | Yrd Mat Sub Mat Sto Rec Fac Low Dat Pro Fac Upp Upp War Pro Fac Was Fac Ext Cet Arc Hub Res Qua Sec Res Acc Com Total 32273 | 69 1896 347 1201 1603 1456 887 1189 1002 1033 1283 1729 739 1194 469 1082 152 1789 1204 274 2183 237 1698 5313 1462 211 276 295 Wait 7493 | . 1014 32 122 195 333 41 73 353 346 178 626 54 279 230 64 22 119 140 73 2088 15 66 806 191 5 10 18 Move 22084 | 42 778 268 894 1171 1019 744 1093 482 655 991 1087 665 863 216 907 127 1483 797 175 75 183 1489 4176 1090 141 241 232 Hop 4 | . . . . . . . . . . . . . . . . . . . . . . 4 . . . . . Pick Up 382 | 7 15 4 30 24 24 27 4 50 . 15 4 4 16 2 16 2 22 3 1 . 2 14 89 7 . . . Fast Attach 77 | 6 4 . 11 11 1 1 . 3 . 1 1 . 3 . 1 . 3 1 1 1 . 2 8 16 . . 2 Attach 76 | 1 1 . 4 8 2 2 . 4 . 3 . . . 2 10 . 12 . . . . 3 8 6 6 2 2 Detach 40 | . . . 1 2 7 . . 2 . . . . . . 4 . 2 . . . . . 8 6 6 1 1 Swap 289 | 2 7 12 26 22 . 18 6 4 10 27 3 . 8 3 15 1 21 18 . 3 8 31 32 10 . . 2 Drop 425 | 3 13 6 37 28 41 21 4 52 . 14 2 1 19 5 10 . 22 3 1 . 2 17 92 18 2 1 11 Fire 1140 | 7 57 20 71 132 24 33 9 52 21 49 6 4 4 9 24 . 90 91 23 16 27 72 94 118 50 17 20 Melee 5 | . . 5 . . . . . . . . . . . . . . . . . . . . . . . . . Ram . | . . . . . . . . . . . . . . . . . . . . . . . . . . . . Kick 62 | . . . . . . . . . 1 . . . . . 31 . 15 3 . . . . . . 1 4 7 Crush 43 | 1 7 . 5 10 1 . . . . 5 . 11 1 2 . . . . . . . . . . . . . Escape Stasis . | . . . . . . . . . . . . . . . . . . . . . . . . . . . . Rewire 152 | . . . . . 4 . . . . . . . . . . . . 148 . . . . . . . . . Trap 1 | . . . . . . . . . . . . . 1 . . . . . . . . . . . . . . Miscellaneous . | . . . . . . . . . . . . . . . . . . . . . . . . . . . . Route ------- -11/Scrapyard -10/Materials (discovered 6 exits: *Mat x3 / *Min x2 / *Sub) -10/Subcaves (discovered 2 exits: *Mat x2) -8/Materials (discovered 3 exits: *Fac x2 / *Sto) -8/Storage (discovered 2 exits: *Fac / *Rec) -8/Recycling -6/Factory (discovered 3 exits: *Fac / *Low x2) -6/Lower Caves (discovered 2 exits: [*Low] / *Dat) -6/Data Miner -5/Proximity Caves -5/Factory (discovered 3 exits: Fac / *Upp x2) -5/Upper Caves -5/Upper Caves (discovered 2 exits: *Fac / *War) -5/Warlord -4/Proximity Caves -4/Factory (discovered 9 exits: *Res x4 / *Upp x2 / Ext x2 / Arm) -4/Waste -4/Factory (discovered 6 exits: *Res / Upp x2 / *Ext x2 / Arm) -4/Extension (discovered 2 exits: *Res / *Cet) -4/Cetus (discovered 2 exits: *Res / *Arc) -4/Archives (discovered 2 exits: *Res / *Hub) -4/Hub_04(d) -3/Research (discovered 2 exits: *Res / *Qua) -3/Quarantine (discovered 3 exits: *Res / *Sec / *Frg) -3/Section 7 -2/Research (discovered 2 exits: *Acc x2) -1/Access -1/Command Tau Ceti IV Orbit History --------- Turn | Location | Event 2 | -11/Scrapyard | Met Revision 17 9 | -11/Scrapyard | Discovered new exit (range 15) 109 | -11/Scrapyard | Entered Materials 309 | -10/Materials | Build established: Mutant 395 | -10/Materials | Discovered new exit (range 15) 581 | -10/Materials | Discovered new exit (range 9) 786 | -10/Materials | Repaired Lgt. Treads 930 | -10/Materials | Discovered new exit (range 12) 1010 | -10/Materials | Build established: Scavenger-Mutant 1036 | -10/Materials | Discovered new exit (range 16) 1133 | -10/Materials | Identified exit to Subcaves 1191 | -10/Materials | Identified exit to Mines 1191 | -10/Materials | Identified exit to Materials 1274 | -10/Materials | Learned location of 2 exits from Mines 1300 | -10/Materials | Learned location of 1 exit from Storage 1317 | -10/Materials | Learned location of 1 exit from Storage 1346 | -10/Materials | Learned 4 Subcaves zone layouts 1386 | -10/Materials | Loaded intel: 14 trap records 1435 | -10/Materials | Learned location of 2 exits from Materials 2054 | -10/Materials | Build established: Mutant 2576 | -10/Materials | Entered Subcaves 2577 | -10/Subcaves | Identified exit to Materials 2664 | -10/Subcaves | Core integrity fell below 50% 2859 | -10/Subcaves | Shifting Twisted Machinery released Mak. Spear 2880 | -10/Subcaves | Shifting Twisted Machinery released Spk. Treads 2995 | -10/Subcaves | A swath of the cavern ceiling suddenly collapsed 3114 | -10/Subcaves | Discovered exit to Materials (range 6) 3123 | -10/Subcaves | Entered Materials 3123 | -8/Materials | Evolved 4 slots: Power x1, Propulsion x1, Utility x1, Weapon x1 3124 | -8/Materials | Identified exit to Storage 3124 | -8/Materials | Identified exit to Factory 3440 | -8/Materials | Build established: Scavenger-Gunner 3797 | -8/Materials | Discovered exit to Factory (range 3) 4106 | -8/Materials | Build established: Gunner 5031 | -8/Materials | Entered Storage 5032 | -8/Storage | Identified exit to Recycling 5049 | -8/Storage | Build established: Scavenger-Gunner 5139 | -8/Storage | Destroyed 7 combat bots 5300 | -8/Storage | Found Prototype Launcher 5300 | -8/Storage | Identified Gui. Missile Launcher 5342 | -8/Storage | Learned location of Armory (-4) 5437 | -8/Storage | Build established: Gunner 6431 | -8/Storage | Assisted by bots powering up and referring to "LRC-V3" 6458 | -8/Storage | Used back door to open Recycling access 6768 | -8/Storage | Repaired Hvy. Assault Cannon 6808 | -8/Storage | Repaired Adv. Treads 7082 | -8/Storage | Build established: Commander-Gunner 7651 | -8/Storage | Repaired Seismic Detector 7873 | -8/Storage | Met a pair of Derelict thieves 7984 | -8/Storage | Entered Recycling 7984 | -8/Recycling | Accompanied by 12 allies 8818 | -8/Recycling | Discovered new exit (range 10) 9197 | -8/Recycling | Entered Scraplab 9236 | -8/Recycling | Found Prototype Device 9236 | -8/Recycling | Identified Scrap Engine 9497 | -8/Recycling | Build established: Commander-Mutant 9875 | -8/Recycling | Build established: Commander-Construct 10591 | -8/Recycling | Entered Factory 10591 | -6/Factory | Accompanied by 13 allies 10591 | -6/Factory | Evolved 4 slots: Propulsion x1, Utility x2, Weapon x1 11098 | -6/Factory | Lost 3 allies 11170 | -6/Factory | Discovered new exit (range 3) 11175 | -6/Factory | Identified exit to Factory 11301 | -6/Factory | Lost 5 allies 11465 | -6/Factory | Spotted B-75 Beast 11474 | -6/Factory | Destroyed B-75 Beast 11563 | -6/Factory | Identified exit to Lower Caves 11740 | -6/Factory | Entered Lower Caves 11783 | -6/Lower Caves | Build established: Construct 12086 | -6/Lower Caves | Entered a destroyed Warlord outpost 12096 | -6/Lower Caves | Learned Factory emergency access door positions 12230 | -6/Lower Caves | Encountered a Warlord checkpoint 12507 | -6/Lower Caves | A Derelict revealed a hidden shortcut to meet someone special 12600 | -6/Lower Caves | Discovered new exit (range 7) 13168 | -6/Lower Caves | Entered Data Miner 13174 | -6/Data Miner | Discovered new exit (range 7) 13214 | -6/Data Miner | Met Data Miner 13237 | -6/Data Miner | Learned location of Section 7 (-3) 13237 | -6/Data Miner | Acquired the access code to Warlord's prototype stash 13255 | -6/Data Miner | Received God Mode back door access code from Data Miner 13385 | -6/Data Miner | Data Conduit disabled 14299 | -6/Data Miner | Identified exit to Proximity Caves 14300 | -6/Data Miner | Entered Proximity Caves 14326 | -5/Proximity Caves | Acquired the password to a Derelict Tinkerer's latest research 14753 | -5/Proximity Caves | Learned 4 Factory zone layouts 14802 | -5/Proximity Caves | Spotted B-75 Beast 15402 | -5/Proximity Caves | Discovered exit to Factory (range 11) 15497 | -5/Proximity Caves | Entered Factory 15497 | -5/Factory | Evolved 2 slots: Power x1, Propulsion x1 15498 | -5/Factory | Identified exit to Factory 15846 | -5/Factory | Watched by a mysterious "MATRIX" hacker. 16072 | -5/Factory | Identified exit to Upper Caves 16536 | -5/Factory | Destroyed 7 combat bots 16824 | -5/Factory | Entered Upper Caves 16826 | -5/Upper Caves | Identified exit to Upper Caves 17455 | -5/Upper Caves | Encountered a Warlord checkpoint 18223 | -5/Upper Caves | Attracted the attention of an 0b10 checkpoint 18329 | -5/Upper Caves | Entered another Upper Caves area 18335 | -5/Upper Caves | Discovered exit to Factory (range 12) 18354 | -5/Upper Caves | Encountered a Warlord checkpoint 18376 | -5/Upper Caves | Spotted B-75 Beast 18494 | -5/Upper Caves | Learned Factory emergency access door positions 18596 | -5/Upper Caves | Learned Factory garrison access intel 18785 | -5/Upper Caves | Discovered new exit (range 8) 18886 | -5/Upper Caves | Entered Warlord 19038 | -5/Warlord | Opened Warlord's prototype stash 19040 | -5/Warlord | Found Prototype Reactor 19044 | -5/Warlord | Found Prototype Device 19044 | -5/Warlord | Identified Exp. Cloaking Device 19082 | -5/Warlord | Met Warlord 19107 | -5/Warlord | Warlord's base attacked by MAIN.C 19225 | -5/Warlord | Found Prototype Energy Gun 19229 | -5/Warlord | Found Prototype Energy Gun 19232 | -5/Warlord | Found Prototype Energy Gun 19457 | -5/Warlord | Warlord forces counterattacked 19511 | -5/Warlord | Spotted Executioner 19542 | -5/Warlord | Destroyed Executioner 19553 | -5/Warlord | Spotted B-75 Beast 19570 | -5/Warlord | Spotted B-86 Titan 19618 | -5/Warlord | Lost 16 allies 19657 | -5/Warlord | Spotted Striker 19713 | -5/Warlord | Lost 16 allies 19774 | -5/Warlord | Spotted Executioner 19782 | -5/Warlord | Warlord base infiltrated, sounded retreat 19816 | -5/Warlord | Spotted Striker 19827 | -5/Warlord | Spotted Striker 19839 | -5/Warlord | Spotted Executioner 19846 | -5/Warlord | Spotted Striker 19877 | -5/Warlord | Discovered new exit (range 15) 19897 | -5/Warlord | Entered Proximity Caves 19899 | -4/Proximity Caves | Spotter reported a threat 19900 | -4/Proximity Caves | Spotter reported a threat 20247 | -4/Proximity Caves | Spotted B-86 Titan 20248 | -4/Proximity Caves | Build established: Infiltrator-Construct 20277 | -4/Proximity Caves | Spotter reported a threat 20297 | -4/Proximity Caves | Spotter reported a threat 20347 | -4/Proximity Caves | Discovered exit to Factory (range 13) 20382 | -4/Proximity Caves | Entered Factory 20382 | -4/Factory | Evolved 2 slots: Propulsion x1, Utility x1 20384 | -4/Factory | Loaded intel: 4 garrison access locations 20518 | -4/Factory | Identified exit to Research 20602 | -4/Factory | Build established: Construct 20632 | -4/Factory | Search patrols dispatched 20847 | -4/Factory | Discovered new exit (range 7) 20857 | -4/Factory | Identified exit to Upper Caves 20857 | -4/Factory | Identified exit to Extension 20857 | -4/Factory | Identified exit to Armory 20882 | -4/Factory | Search patrols dispatched 21057 | -4/Factory | Sucked down chute 21057 | -4/Factory | Entered Waste 21058 | -4/Waste | Met a frightened Derelict 21072 | -4/Waste | EMP discharged 21079 | -4/Waste | Spotted C-40 Crusher 21081 | -4/Waste | Spotted C-40 Crusher 21110 | -4/Waste | Spotted C-40 Crusher 21111 | -4/Waste | Spotted C-40 Crusher 21112 | -4/Waste | Spotted C-40 Crusher 21119 | -4/Waste | Discovered new exit (range 16) 21119 | -4/Waste | Spotted C-40 Crusher 21149 | -4/Waste | Entered Factory 21280 | -4/Factory | Found Quantum Capacitor 21402 | -4/Factory | Spotted B-86 Titan 21556 | -4/Factory | Found Prototype Hackware 21625 | -4/Factory | Identified Exp. Hacking Suite 21634 | -4/Factory | Discovered exit to Research (range 8) 22033 | -4/Factory | Garrison activated, responded to threat 22149 | -4/Factory | First assault squad dispatched 22210 | -4/Factory | Spotted B-86 Titan 22314 | -4/Factory | System corruption reached 10% 22317 | -4/Factory | Entered Extension 22817 | -4/Extension | First assault squad dispatched 22860 | -4/Extension | Spotted B-86 Titan 22877 | -4/Extension | Allies destroyed B-86 Titan 22884 | -4/Extension | Spotted B-86 Titan 22898 | -4/Extension | Allies destroyed B-86 Titan 22917 | -4/Extension | Build established: Commander-Construct 22980 | -4/Extension | Lost 9 allies 22990 | -4/Extension | Destroyed 11 combat bots 23101 | -4/Extension | Rescued a captive Derelict 23101 | -4/Extension | Rescued a captive Derelict 23176 | -4/Extension | Rescued A7 23228 | -4/Extension | Build established: Construct 23254 | -4/Extension | Rescued a captive Derelict 23255 | -4/Extension | Rescued a captive Derelict 23277 | -4/Extension | High security lockdown imminent 23291 | -4/Extension | Discovered exit to Research (range 10) 23292 | -4/Extension | Discovered new exit (range 6) 23297 | -4/Extension | Identified exit to Cetus 23298 | -4/Extension | Destroyed 9 combat bots 23330 | -4/Extension | Entered Cetus 23330 | -4/Cetus | Accompanied by 7 allies (A7) 23335 | -4/Cetus | Acquired a Cetus Manufacturing Module code from A7 23347 | -4/Cetus | Spotted Cetus Guard 23347 | -4/Cetus | Spotted Cetus Guard 23350 | -4/Cetus | Spotted Cetus Guard 23350 | -4/Cetus | Spotted Cetus Guard 23353 | -4/Cetus | Destroyed Cetus Guard 23360 | -4/Cetus | Allies destroyed Cetus Guard 23361 | -4/Cetus | Destroyed Cetus Guard 23362 | -4/Cetus | Destroyed Cetus Guard 23406 | -4/Cetus | Started Cetus Manufacturing Module 23414 | -4/Cetus | Escorted A7 to Cetus Mainframe 23431 | -4/Cetus | Manufactured an Enhanced Grunt 23444 | -4/Cetus | Discovered new exit (range 16) 23456 | -4/Cetus | Manufactured an Enhanced Grunt 23467 | -4/Cetus | Destroyed Cetus Guard 23473 | -4/Cetus | Destroyed Cetus Guard 23477 | -4/Cetus | Spotted Cetus Guard 23477 | -4/Cetus | Spotted Cetus Guard 23480 | -4/Cetus | Destroyed Cetus Guard 23481 | -4/Cetus | Manufactured an Enhanced Grunt 23484 | -4/Cetus | Destroyed Cetus Guard 23497 | -4/Cetus | Discovered exit to Research (range 15) 23501 | -4/Cetus | Met Revision 17 23506 | -4/Cetus | Manufactured an Enhanced Grunt 23531 | -4/Cetus | Manufactured an Enhanced Grunt 23542 | -4/Cetus | Identified exit to Archives 23583 | -4/Cetus | Entered Archives 23583 | -4/Archives | Accompanied by 11 allies (A7) 23588 | -4/Archives | Received a hacking code to weaken MAIN.C 23639 | -4/Archives | Discovered exit to Research (range 15) 23737 | -4/Archives | Build established: Commander-Construct 23944 | -4/Archives | Discovered new exit (range 14) 23954 | -4/Archives | Identified exit to Hub_04(d) 25769 | -4/Archives | Entered Hub_04(d) 25769 | -4/Hub_04(d) | Accompanied by 9 allies 25966 | -4/Hub_04(d) | Network Hub disabled 25967 | -4/Hub_04(d) | Spotted Lightning 25967 | -4/Hub_04(d) | Spotted Lightning 25967 | -4/Hub_04(d) | Spotted Lightning 25968 | -4/Hub_04(d) | Garrison activated, responded to threat 25983 | -4/Hub_04(d) | Spotted Lightning 25984 | -4/Hub_04(d) | Spotted Lightning 25987 | -4/Hub_04(d) | Spotted Lightning 25995 | -4/Hub_04(d) | Discovered exit to Research (range 6) 26002 | -4/Hub_04(d) | Entered Research 26002 | -3/Research | Evolved 2 slots: Power x1, Utility x1 26022 | -3/Research | Lost 5 allies 26202 | -3/Research | Revision forces began assault on 0b10 26253 | -3/Research | Met up with Revision 17++ 26300 | -3/Research | Build established: Generator-Construct 26466 | -3/Research | Discovered new exit (range 5) 26471 | -3/Research | Identified exit to Research 26540 | -3/Research | Spotted B-86 Titan 26559 | -3/Research | Destroyed B-86 Titan 26702 | -3/Research | Research terminal network offline 26735 | -3/Research | Lost 5 allies 26785 | -3/Research | Spotted Striker 26785 | -3/Research | Spotted Striker 26789 | -3/Research | Destroyed Striker 26815 | -3/Research | Destroyed Striker 27461 | -3/Research | Discovered new exit (range 11) 27589 | -3/Research | Found Adv. Powered Armor 27723 | -3/Research | Found Prototype Device 27723 | -3/Research | Identified Exp. ECM Suite 27902 | -3/Research | Identified exit to Quarantine 27909 | -3/Research | Entered Quarantine 28009 | -3/Quarantine | Found Alien Artifact 28009 | -3/Quarantine | Identified Dimensional Node Initializer 28009 | -3/Quarantine | Initialized slip node 28015 | -3/Quarantine | Found Alien Artifact 28210 | -3/Quarantine | Cryocooling Duct disabled 28213 | -3/Quarantine | Cryocooling Duct disabled 28225 | -3/Quarantine | Ambient heat levels rising (+20) 28225 | -3/Quarantine | Non-combat units ordered to evacuate 28228 | -3/Quarantine | Ambient heat levels rising (+20) 28228 | -3/Quarantine | Combat units ordered to evacuate 28328 | -3/Quarantine | Quarantine Guard activated 28372 | -3/Quarantine | Spotted Quarantine Guard 28404 | -3/Quarantine | Spotted Quarantine Guard 28404 | -3/Quarantine | Destroyed Quarantine Guard 28545 | -3/Quarantine | Spotted Quarantine Guard 28547 | -3/Quarantine | Destroyed Quarantine Guard 28584 | -3/Quarantine | Spotted Quarantine Guard 28591 | -3/Quarantine | Destroyed Quarantine Guard 28622 | -3/Quarantine | Destroyed Quarantine Guard 28662 | -3/Quarantine | Spotted Quarantine Guard 28671 | -3/Quarantine | Destroyed Quarantine Guard 28721 | -3/Quarantine | Destroyed Quarantine Guard 28728 | -3/Quarantine | Discovered exit to Research (range 16) 28762 | -3/Quarantine | Identified Vortex Rail (x2) 28770 | -3/Quarantine | Identified Vortex Rifle 28839 | -3/Quarantine | Spotted Quarantine Guard 28846 | -3/Quarantine | Destroyed Quarantine Guard 29123 | -3/Quarantine | Repaired Exp. Cooling System 29609 | -3/Quarantine | Spotted Quarantine Guard 29631 | -3/Quarantine | Destroyed Quarantine Guard 29651 | -3/Quarantine | Spotted Quarantine Guard 29695 | -3/Quarantine | Destroyed Quarantine Guard 29782 | -3/Quarantine | Destroyed Quarantine Guard 29805 | -3/Quarantine | Found Alien Artifact 29805 | -3/Quarantine | Identified Core Reset Matrix 29805 | -3/Quarantine | Identified Transdimensional Reconstructor 29805 | -3/Quarantine | Used Core Reset Matrix 29809 | -3/Quarantine | Detected hypermatrix surge 29809 | -3/Quarantine | Sensed 14 artifacts in vicinity 30452 | -3/Quarantine | Discovered exit to Research (range 16) 30953 | -3/Quarantine | Found Transdimensional Reconstructor 30961 | -3/Quarantine | Found Dimensional Node Initializer 31073 | -3/Quarantine | Found Prototype Launcher 31074 | -3/Quarantine | Identified Com. Tesla Bomb Launcher 31298 | -3/Quarantine | Found Subatomic Replicator 31681 | -3/Quarantine | Met incapacitated Sigix Warrior 31681 | -3/Quarantine | Lockdown squad dispatched 31688 | -3/Quarantine | Found Sigix Containment Pod 31960 | -3/Quarantine | Found Transdimensional Reconstructor 31969 | -3/Quarantine | Spotted Lightning 31970 | -3/Quarantine | Spotted Lightning 31970 | -3/Quarantine | Spotted Lightning 31975 | -3/Quarantine | Destroyed Lightning 31996 | -3/Quarantine | Found Prototype Device 31996 | -3/Quarantine | Identified Exp. Phase Shifter 32001 | -3/Quarantine | Found Prototype Device 32001 | -3/Quarantine | Identified Exp. EM Shield 32031 | -3/Quarantine | Destroyed Lightning 32032 | -3/Quarantine | Destroyed Lightning 32211 | -3/Quarantine | Spotted Fortress 32263 | -3/Quarantine | Discovered new exit (range 5) 32263 | -3/Quarantine | Discovered new exit (range 6) 32263 | -3/Quarantine | Spotted Quarantine Guard 32263 | -3/Quarantine | Spotted Quarantine Guard 32267 | -3/Quarantine | Destroyed Quarantine Guard 32285 | -3/Quarantine | Destroyed Quarantine Guard 32299 | -3/Quarantine | Identified exit to Protoforge 32305 | -3/Quarantine | Identified exit to Section 7 32306 | -3/Quarantine | Entered Section 7 32307 | -3/Section 7 | Detected hypermatrix surge 32307 | -3/Section 7 | Sensed 22 artifacts in vicinity 32407 | -3/Section 7 | Crushed by falling debris 32514 | -3/Section 7 | Found Integrated Dissipator 32514 | -3/Section 7 | Installed Integrated Dissipator, increased core heat dissipation (+20) 32552 | -3/Section 7 | Found Microwarp Drive 32635 | -3/Section 7 | Spotted B-86 Titan 32780 | -3/Section 7 | Found Integrity Redistributor 32846 | -3/Section 7 | System corruption reached 10% 32972 | -3/Section 7 | Spotted Alpha 7 33037 | -3/Section 7 | Found Integrated Reactor 33037 | -3/Section 7 | Installed Integrated Reactor, increased core energy generation (+10) 33045 | -3/Section 7 | Spotted Alpha 7 33077 | -3/Section 7 | Destroyed Alpha 7 33096 | -3/Section 7 | Destroyed Alpha 7 33110 | -3/Section 7 | Found Prototype Ballistic Gun 33110 | -3/Section 7 | Identified Multirail 33117 | -3/Section 7 | Found Prototype Processor 33117 | -3/Section 7 | Identified Exp. Targeting Computer 33129 | -3/Section 7 | Found Prototype Processor 33129 | -3/Section 7 | Identified Exp. Target Analyzer 33135 | -3/Section 7 | Found Prototype Device 33135 | -3/Section 7 | Identified Exp. ECM Suite 33253 | -3/Section 7 | Spotted B-99 Colossus 33337 | -3/Section 7 | Found Core Expander 33337 | -3/Section 7 | Installed Core Expander, added new Utility slot 33339 | -3/Section 7 | Found Core Expander 33339 | -3/Section 7 | Installed Core Expander, added new Weapon slot 33370 | -3/Section 7 | Found LRC Energy Well 33370 | -3/Section 7 | Installed LRC Energy Well, increased energy storage capacity (+250) 33375 | -3/Section 7 | Found LRC Matter Compressor 33375 | -3/Section 7 | Installed LRC Matter Compressor, increased matter storage capacity (+125) 33433 | -3/Section 7 | Destroyed B-99 Colossus 33441 | -3/Section 7 | Found Corrupted Multirail 33489 | -3/Section 7 | Spotted Executioner 33489 | -3/Section 7 | Spotted Executioner 33491 | -3/Section 7 | Destroyed Executioner 33495 | -3/Section 7 | Destroyed Executioner 33509 | -3/Section 7 | Activated Sigix Exoskeleton 33509 | -3/Section 7 | Received instructions from Sigix Warrior 33629 | -3/Section 7 | Entered Research 33629 | -2/Research | Accompanied by 1 ally (Sigix Warrior) 33629 | -2/Research | Warlord forces began assault on 0b10 33629 | -2/Research | Evolved 2 slots: Propulsion x1, Utility x1 33739 | -2/Research | Research machine network offline 33764 | -2/Research | Spotted Striker 33771 | -2/Research | Sigix Exoskeleton integrity reduced to 80% 33792 | -2/Research | Discovered new exit (range 6) 33796 | -2/Research | Identified exit to Access 33805 | -2/Research | Discovered exit to Access (range 11) 33834 | -2/Research | Sigix Exoskeleton integrity reduced to 60% 33839 | -2/Research | Spotted Striker 33842 | -2/Research | Entered Access 33842 | -1/Access | Accompanied by 1 ally (Sigix Warrior) 33842 | -1/Access | Evolved 1 slot: Utility x1 33858 | -1/Access | Destroyed 11 combat bots 33871 | -1/Access | Garrison activated, responded to threat 33917 | -1/Access | Spotted B-99 Colossus 33948 | -1/Access | Spotted B-99 Colossus 33949 | -1/Access | Sigix Exoskeleton integrity reduced to 40% 33973 | -1/Access | Core integrity fell below 50% 34058 | -1/Access | Spotted B-99 Colossus 34058 | -1/Access | Spotted B-99 Colossus 34070 | -1/Access | Discovered new exit (range 4) 34072 | -1/Access | Identified exit to Command 34073 | -1/Access | Sigix Exoskeleton integrity reduced to 20% 34076 | -1/Access | Entered Command 34076 | -1/Command | Accompanied by 1 ally (Sigix Warrior) 34134 | -1/Command | Phase Generator disabled 34176 | -1/Command | High security lockdown imminent 34217 | -1/Command | Emitted hypermatrix ping 34222 | -1/Command | Assembled emerged from beneath the floor 34256 | -1/Command | High security lockdown engaged 34320 | -1/Command | Spotted B-99 Colossus 34320 | -1/Command | Spotted B-99 Colossus 34320 | -1/Command | Spotted Executioner 34320 | -1/Command | Spotted Executioner 34320 | -1/Command | Spotted Executioner 34320 | -1/Command | Spotted Executioner 34320 | -1/Command | Spotted Striker 34320 | -1/Command | Spotted Striker 34320 | -1/Command | Spotted Alpha 7 34320 | -1/Command | Spotted Alpha 7 34321 | -1/Command | Discovered new exit (range 5) 34323 | -1/Command | Identified exit to Surface 34329 | *** | Destroyed 0b10! Last Messages --------------- 34323_ Slug penetrates Access Shell. 34323_ Penetrated by Slug. 34323_ Slug penetrates Wall. 34323_ Slug penetrates B-99 Colossus. 34323_ Slug penetrates Wall. 34323_ EXIT=IDENTIFIED: SURFACE 34323_ Microwarped (distance 5). 34324_ Penetrated by Slug. 34325_ Slug penetrates Wall. 34325_ Adv. Force Field destroyed. 34325_ Penetrated by Slug. 34325_ Slug penetrates Wall. 34328_ Penetrated by Slug. 34328_ Slug penetrates Access Shell. 34328_ Slug penetrates Wall. 34328_ Penetrated by Slug. 34328_ Slug penetrates Wall. 34328_ Slug penetrates Sigix Warrior. 34329_ Quantum Shear penetrates Striker. [Achievement: Partners In Destruction] Map ----- +----------------------------------------------------+ | ?????????????????????????????????????????????#???? | | ?????????????????????????????????????????????????? | | ???????????????????????????????????????????????#?? | | ??????????????????????????????????????????? ?????? | | ?????????????????????????????????????????????????? | | ???????????????????????????????????????????##????? | | ?????????????????????????????????????????????????? | | ?????????????????????????????????????????????????? | | ?????????????????????????????????????????????????? | | ?????????????????????????????????????????????????? | | ?????????????????????????????????????????????????? | | ??????????????????????????????????????#??????????? | | ?????????????????????????????????????????????????? | | ?????????????????????????????????????????????????? | | ?????????????????????????????????????????????#???? | | ?????????????????????????????????????????????????? | | ??????????????????????????????????????????????#??? | | ?????????????????????????????????????????????????# | | ???????????????????#####????#####????????????????? | | ???????????????????# ???? % #????????????????? | | ???????????????????# ???? ###?#?#????#?????? | | ???????????????????# ???? B # # # # ###??????? | | ???????????????????# """""" ######## | | ???????????????????# E EK7 ^ + | | ?????????k?????????# %" "" % ^ + | | ???????????????????# % @" X% + | | ???????????????????# E % " | | ???????????????????# "" % % E 7 K ##" # | | ??????????????????#; # # # # ##??#????? | | ??????????????????## BB#????????????????? | | ???????????????????# BB#????????????????? | | ???????????????????#######"#;####????????????????# | | ?????????????????????????##?##???????????????????# | | ??????????????????????????????????#?????#????????# | | ?????????????????????????????????????????????????# | | ?????????????????????????????????????????????????# | | ????????????????????????????????????????#????????? | | ?????????????????????????????????????????????????? | | ?????????????????????????????????????????????????? | | ???????????????????????Y?????????????????????????? | | ?????????????????????????????????????????????????? | | ?????????????????????????????????????????????????? | | ?????????????????????????????????????????????????? | | ?????????????????????????????????????????????????? | | ?????????????????????????????????????????????????? | | ?????????????????????????????????????????????????? | | ?????????????????????????????????????????????????? | | ?????????????????????????????????????????????????? | | ?????????????????????????????????????????????????? | | ?????????????????????????????????????????????????? | +----------------------------------------------------+ Best States ------------- Heat Dissipation 136 Coolant Potential 120 Energy Generation 138 Energy Capacity 2470 Matter Stores 425 Matter Capacity 425 Sight Range 16 Robot Scan Range 18 Terrain Scan Range 24 Terrain Scan Density 10 ECM Strength 1 Jamming Range 16 Cloak Strength 4 Power Amplification 30 Armor Coverage 225 Weapon Cycling 25 Evasion (%) 64 Targeting Accuracy 12 Target Analysis 10 Recoil Reduction 5 Energy Filtering 50 Offensive Hacking 16 Defensive Hacking 10 Authchip Count 2 Item Schematics ----------------- None Robot Schematics ------------------ None Fabricated ------------ Nothing Repaired ---------- Lgt. Treads | 21% | -10/Materials Hvy. Assault Cannon | 31% | -8/Storage Adv. Treads | 25% | -8/Storage Seismic Detector | 15% | -8/Storage Exp. Cooling System | 48% | -3/Quarantine Studied --------- None Alien Tech Used ----------------- Dimensional Node Initializer Core Reset Matrix Integrated Dissipator Integrated Reactor Core Expander LRC Energy Well LRC Matter Compressor Microwarp Drive Achievements -------------- Everyone Must Die Most Wanted Partners In Destruction Challenges ------------ None Game ------ Seed AlertArmageddonPod Manual? 0 Play Time 06:14:31 Cumulative 648.5 hours Start 2026.03.20 @ 17:09:16 End 2026.03.21 @ 18:13:53 Sessions 10 Manual Loads 0 Difficulty Rogue Special Mode None Game No. 355 Rogue 355 Adventurer 0 Explorer 0 Win Type 3 Total 27 Types 13/1/6/2/1/0/1/2/1/0 Lore% 91 Gallery% 85 Achievement% 76 Wizard Run 0 Options --------- Layout 1 ASCII 0 Keyboard 0 Movement Numpad Keybinds 0 Fullscreen 2 Font 24/Smallcaps Map View 50x40 Zoom Use 0% Tactical HUD 1 Map Filters NONE Filters NONE Steam 1 RUN: eb3b1856-3e9d-4e27-b76f-f72e593230a2